Workbook

Sheet nusinersen OS
A1: arm1_time | B1: arm1_status | C1: arm0_time | D1: arm0_status | E1: trisk | F1: nrisk_arm1 | G1: nrisk_arm0
A2: 0 | B2: 1 | C2: 0 | D2: 1 | E2: 0 | F2: 80 | G2: 41
A3: 0.06698410508 | B3: 0.9960804094 | C3: 0.03693096865 | D3: 0.9963459506 | E3: 13 | F3: 71 | G3: 33
A4: 0.3074091965 | B4: 0.997101917 | C4: 1.148897017 | D4: 0.9963357863 | E4: 26 | F4: 58 | G4: 23
A5: 0.5478342879 | B5: 0.997101917 | C5: 1.509534654 | D5: 0.9963357863 | E5: 39 | F5: 41 | G5: 17
A6: 0.7942700067 | B6: 0.9967108473 | C6: 1.870172291 | D6: 0.9963357863 | E6: 52 | F6: 28 | G6: 12
A7: 0.968578198 | B7: 0.9854625752 | C7: 2.230809928 | D7: 0.9963357863 | E7: 56 | F7: 23 | G7: 10
A8: 1.209003289 | B8: 0.9850992031 | C8: 2.591447565 | D8: 0.996165535
A9: 1.449428381 | B9: 0.9850992031 | C9: 2.861925793 | D9: 0.9960071421
A10: 1.689853472 | B10: 0.9850992031 | C10: 2.891978929 | D10: 0.972926238
A11: 1.930278564 | B11: 0.9850992031 | C11: 2.952085202 | D11: 0.9585400065
A12: 2.170703655 | B12: 0.9850992031 | C12: 2.969429301 | D12: 0.9469629208
A13: 2.411128747 | B13: 0.98535458 | C13: 3.432935385 | D13: 0.9462819158
A14: 2.651553838 | B14: 0.9848438262 | C14: 3.793573022 | D14: 0.9462819158
A15: 2.891978929 | B15: 0.9843330725 | C15: 4.154210659 | D15: 0.9462819158
A16: 3.132404021 | B16: 0.9850992031 | C16: 4.394635751 | D16: 0.9465665149
A17: 3.372829112 | B17: 0.98535458 | C17: 4.407643825 | D17: 0.9220604976
A18: 3.613254204 | B18: 0.9850992031 | C18: 5.10693994 | D18: 0.9219929054
A19: 3.853679295 | B19: 0.9850992031 | C19: 5.123424309 | D19: 0.896817572
A20: 4.084086674 | B20: 0.9850992031 | C20: 5.090193913 | D20: 0.9150573264
A21: 4.334529478 | B21: 0.9840776956 | C21: 5.356336117 | D21: 0.8975341519
A22: 4.57495457 | B22: 0.9848438262 | C22: 5.369344191 | D22: 0.8717512502
A23: 4.815379661 | B23: 0.9845884493 | C23: 5.8371863 | D23: 0.8706903562
A24: 4.99569848 | B24: 0.9709683485 | C24: 6.197823937 | D24: 0.8706903562
A25: 4.99569848 | B25: 0.9835669418 | C25: 6.558461574 | D25: 0.8706903562
A26: 5.236123571 | B26: 0.9707980973 | C26: 6.919099211 | D26: 0.8706903562
A27: 5.476548662 | B27: 0.9707980973 | C27: 7.279736848 | D27: 0.8706903562
A28: 5.716973754 | B28: 0.9707980973 | C28: 7.640374485 | D28: 0.8706903562
A29: 6.007487406 | B29: 0.9704575947 | C29: 8.001012122 | D29: 0.8706903562
A30: 6.25793021 | B30: 0.9703559522 | C30: 8.36164976 | D30: 0.8706903562
A31: 6.318036482 | B31: 0.9590507603 | C31: 8.722287397 | D31: 0.8706903562
A32: 6.558461574 | B32: 0.9590507603 | C32: 9.082925034 | D32: 0.8706903562
A33: 6.798886665 | B33: 0.9585400065 | C33: 9.443562671 | D33: 0.8706903562
A34: 7.039311757 | B34: 0.9585400065 | C34: 9.804200308 | D34: 0.8698390999
A35: 7.279736848 | B35: 0.9580292527 | C35: 9.997527201 | D35: 0.8465966265
A36: 7.52016194 | B36: 0.9585400065 | C36: 10.01457226 | D36: 0.8701008294
A37: 7.700480758 | B37: 0.9576658806 | C37: 10.46536931 | D37: 0.8461741747
A38: 7.880799577 | B38: 0.9460265389 | C38: 10.82600695 | D38: 0.8461741747
A39: 8.121224668 | B39: 0.9467926695 | C39: 11.20802567 | D39: 0.8460837128
A40: 8.36164976 | B40: 0.9465372926 | C40: 11.25975893 | D40: 0.8224635103
A41: 8.572021715 | B41: 0.9452604082 | C41: 11.72760104 | D41: 0.8226795007
A42: 8.662181124 | B42: 0.9350453326 | C42: 12.13533688 | D42: 0.8219600748
A43: 8.902606215 | B43: 0.934023825 | C43: 12.15268097 | D43: 0.7992864693
A44: 9.143031307 | B44: 0.934023825 | C44: 12.56908886 | D44: 0.7990145755
A45: 9.383456398 | B45: 0.934023825 | C45: 12.92105445 | D45: 0.7987426817
A46: 9.62388149 | B46: 0.934023825 | C46: 12.95226635 | D46: 0.7715945936
A47: 9.864306581 | B47: 0.934023825 | C47: 13.20020472 | D47: 0.7723702533
A48: 10.10473167 | B48: 0.934023825 | C48: 13.49640006 | D48: 0.772438862
A49: 10.34515676 | B49: 0.934023825 | C49: 13.51808019 | D49: 0.7488952726
A50: 10.58558186 | B50: 0.934023825 | C50: 14.01163941 | D50: 0.7474284436
A51: 10.82600695 | B51: 0.934023825 | C51: 14.23068341 | D51: 0.7238084106
A52: 11.06643204 | B52: 0.934023825 | C52: 14.22634739 | D52: 0.7483940478
A53: 11.40972558 | B53: 0.9332183079 | C53: 14.67280841 | D53: 0.7235932672
A54: 11.42706968 | B54: 0.9184166125 | C54: 15.03344605 | D54: 0.7238486441
A55: 11.63744163 | B55: 0.9187012116 | C55: 15.39408368 | D55: 0.7235932672
A56: 11.66749477 | B56: 0.9053530046 | C56: 15.75472132 | D56: 0.7235932672
A57: 11.93797299 | B57: 0.9058078549 | C57: 16.11535896 | D57: 0.7235932672
A58: 11.95800842 | B58: 0.8962280452 | C58: 16.4759966 | D58: 0.7235932672
A59: 12.20845122 | B59: 0.8952065376 | C59: 16.83663423 | D59: 0.7235932672
A60: 12.44887631 | B60: 0.8952065376 | C60: 17.19727187 | D60: 0.7229122622
A61: 12.68930141 | B61: 0.8952065376 | C61: 17.41631587 | D61: 0.6980949646
A62: 12.9297265 | B62: 0.8952065376 | C62: 17.40764382 | D62: 0.7230037404
A63: 13.17015159 | B63: 0.8952065376 | C63: 17.90185096 | D63: 0.6968070689
A64: 13.41057668 | B64: 0.8952065376 | C64: 18.20619859 | D64: 0.6967465674
A65: 13.65100177 | B65: 0.8952065376 | C65: 18.57971615 | D65: 0.6970340706
A66: 13.89142686 | B66: 0.8952065376 | C66: 18.93168173 | D66: 0.6973580562
A67: 14.13185195 | B67: 0.8952065376 | C67: 18.95336186 | D67: 0.672684964
A68: 14.37227705 | B68: 0.8952065376 | C68: 19.42120397 | D68: 0.6725178891
A69: 14.62271985 | B69: 0.8952065376 | C69: 19.81189474 | D69: 0.6726455775
A70: 14.86314494 | B70: 0.8958875427 | C70: 20.14247924 | D70: 0.6731988941
A71: 15.09355232 | B71: 0.8949511608 | C71: 20.50311688 | D71: 0.6725178891
A72: 15.33397741 | B72: 0.8952065376 | C72: 20.86375451 | D72: 0.6725178891
A73: 15.5744025 | B73: 0.8952065376 | C73: 21.24585868 | D73: 0.6714088237
A74: 15.81482759 | B74: 0.8952065376 | C74: 21.94566743 | D74: 0.6725178891
A75: 16.11535896 | B75: 0.8946957839 | C75: 22.30630506 | D75: 0.6725178891
A76: 16.18413728 | B76: 0.882074321 | C76: 22.6669427 | D76: 0.6725178891
A77: 16.4759966 | B77: 0.8816715624 | C77: 23.0446254 | D77: 0.6717634473
A78: 16.71642169 | B78: 0.8819269393 | C78: 23.05359649 | D78: 0.6425536673
A79: 16.95684678 | B79: 0.8811608087 | C79: 23.56853679 | D79: 0.6418726622
A80: 17.19727187 | B80: 0.8809054318 | C80: 23.92917443 | D80: 0.6418726622
A81: 17.34753755 | B81: 0.8798839242 | C81: 24.28981207 | D81: 0.6418726622
A82: 17.43769696 | B82: 0.8673704566 | C82: 24.6504497 | D82: 0.6418726622
A83: 17.67812205 | B83: 0.8676258335 | C83: 25.01108734 | D83: 0.6418726622
A84: 17.91854714 | B84: 0.8678812104 | C84: 25.37172498 | D84: 0.6418726622
A85: 18.09886596 | B85: 0.8671150797 | C85: 25.73236262 | D85: 0.6418726622
A86: 18.40941504 | B86: 0.8672853309 | C86: 26.09300025 | D86: 0.6426526417
A87: 18.60976928 | B87: 0.8676258335 | C87: 26.48369103 | D87: 0.6425309671
A88: 18.88024751 | B88: 0.8682839689 | C88: 26.81427553 | D88: 0.6428941698
A89: 19.18077887 | B89: 0.8677732152 | C89: 27.17491316 | D89: 0.6418726622
A90: 19.42120397 | B90: 0.8678812104 | C90: 27.5355508 | D90: 0.6418726622
A91: 19.66162906 | B91: 0.8676258335 | C91: 27.89618844 | D91: 0.6418726622
A92: 19.90205415 | B92: 0.8678812104 | C92: 28.25682608 | D92: 0.6418726622
A93: 20.15249695 | B93: 0.8676258335 | C93: 28.61746371 | D93: 0.6418726622
A94: 20.32279806 | B94: 0.8676944422 | C94: 28.97810135 | D94: 0.6418726622
A95: 20.33147011 | B95: 0.8546016121 | C95: 29.33873899 | D95: 0.6418726622
A96: 20.62332942 | B96: 0.8546016121 | C96: 29.69937662 | D96: 0.6418726622
A97: 20.86375451 | B97: 0.8543462352 | C97: 30.08148079 | D97: 0.6421353356
A98: 21.10417961 | B98: 0.8543462352 | C98: 30.78128954 | D98: 0.6418726622
A99: 21.3446047 | B99: 0.8551123658 | C99: 31.14192717 | D99: 0.6418726622
A100: 21.65515377 | B100: 0.8546867377 | C100: 31.50256481 | D100: 0.6418726622
A101: 21.88556115 | B101: 0.8543462352 | C101: 31.86320245 | D101: 0.6418726622
A102: 22.12598624 | B102: 0.8543462352 | C102: 32.22384008 | D102: 0.6418726622
A103: 22.36641134 | B103: 0.8543462352 | C103: 32.58447772 | D103: 0.6418726622
A104: 22.60683643 | B104: 0.8543462352 | C104: 32.94511536 | D104: 0.6418726622
A105: 22.84726152 | B105: 0.8543462352 | C105: 33.40862144 | D105: 0.641384778
A106: 23.08768661 | B106: 0.8543462352 | C106: 33.42596554 | D106: 0.6255285412
A107: 23.3281117 | B107: 0.8543462352 | C107: 33.43897362 | D107: 0.6076718521
A108: 23.56853679 | B108: 0.8543462352 | C108: 33.90681572 | D108: 0.6071414051
A109: 23.80896188 | B109: 0.8543462352 | C109: 34.26745336 | D109: 0.6071414051
A110: 24.04938698 | B110: 0.8543462352 | C110: 34.628091 | D110: 0.6071414051
A111: 24.28981207 | B111: 0.8543462352 | C111: 34.98872864 | D111: 0.6071414051
A112: 24.53023716 | B112: 0.8540908583 | C112: 35.34936627 | D112: 0.6071414051
A113: 24.77066225 | B113: 0.8548569889 | C113: 35.71000391 | D113: 0.6071414051
A114: 25.1413176 | B114: 0.8548002385 | C114: 36.07064155 | D114: 0.6071414051
A115: 25.37172498 | B115: 0.8551123658 | C115: 36.43127918 | D115: 0.6071414051
A116: 25.61215007 | B116: 0.8546016121 | C116: 36.79191682 | D116: 0.6071414051
A117: 25.85257516 | B117: 0.8543462352 | C117: 37.15255446 | D117: 0.6071414051
A118: 26.09300025 | B118: 0.8548569889 | C118: 37.5131921 | D118: 0.6071414051
A119: 26.34344306 | B119: 0.8557082452 | C119: 37.87382973 | D119: 0.6071414051
A120: 26.51374416 | B120: 0.8548569889 | C120: 38.23446737 | D120: 0.6073116564
A121: 26.8743818 | B121: 0.8543462352 | C121: 38.83089504 | D121: 0.6082196631
A122: 27.10478918 | B122: 0.8540057326 | C122: 38.84853817 | D122: 0.5697877704
A123: 27.2694086 | B123: 0.8541200805 | C123: 39.31638028 | D123: 0.5703671329
A124: 27.34521427 | B124: 0.8385696184 | C124: 39.67701792 | D124: 0.5703671329
A125: 27.26507257 | B125: 0.838434095 | C125: 40.03765556 | D125: 0.5703671329
A126: 27.59565707 | B126: 0.8374519739 | C126: 40.39829319 | D126: 0.5703671329
A127: 27.82606445 | B127: 0.8369806066 | C127: 40.75893083 | D127: 0.5703671329
A128: 28.07650726 | B128: 0.835959099 | C128: 41.11956847 | D128: 0.5703671329
A129: 28.40709176 | B129: 0.8369806066 | C129: 41.4802061 | D129: 0.5703671329
A130: 28.73767626 | B130: 0.8369806066 | C130: 41.87089688 | D130: 0.5711616387
A131: 29.04822534 | B131: 0.8373211091 | C131: 42.20148138 | D131: 0.5703671329
A132: 29.268615 | B132: 0.8369806066 | C132: 42.56211902 | D132: 0.5703671329
A133: 29.51905781 | B133: 0.835959099 | C133: 42.92275665 | D133: 0.5703671329
A134: 29.7594829 | B134: 0.835959099 | C134: 43.28339429 | D134: 0.5703671329
A135: 30.0099257 | B135: 0.8366401041 | C135: 43.64403193 | D135: 0.5703671329
A136: 30.39463575 | B136: 0.835959099 | C136: 44.00466957 | D136: 0.5703671329
A137: 30.41429738 | B137: 0.8195857558 | C137: 44.3653072 | D137: 0.5703671329
A138: 30.72118326 | B138: 0.8201257318 | C138: 44.72594484 | D138: 0.5703671329
A139: 30.93155522 | B139: 0.819614978 | C139: 45.08658248 | D139: 0.5703671329
A140: 31.26213972 | B140: 0.8193596012 | C140: 45.44722011 | D140: 0.5703671329
A141: 31.50256481 | B141: 0.8193596012 | C141: 45.80785775 | D141: 0.5703671329
A142: 31.75300761 | B142: 0.8199554806 | C142: 46.16849539 | D142: 0.5703671329
A143: 31.89325558 | B143: 0.8194675964 | C143: 46.52913303 | D143: 0.5703671329
A144: 32.21382237 | B144: 0.8202959831 | C144: 46.88977066 | D144: 0.5703671329
A145: 32.46426518 | B145: 0.8198703549 | C145: 47.2504083 | D145: 0.5703671329
A146: 32.67463713 | B146: 0.819614978 | C146: 47.61104594 | D146: 0.5703671329
A147: 32.88500909 | B147: 0.8199097414 | C147: 48.00173671 | D147: 0.5708778866
A148: 33.24564672 | B148: 0.8198703549 | C148: 48.33232121 | D148: 0.571729143
A149: 33.48607181 | B149: 0.819614978 | C149: 48.69295885 | D149: 0.5703671329
A150: 33.72649691 | B150: 0.819614978 | C150: 49.0636142 | D150: 0.5712751396
A151: 33.966922 | B151: 0.819614978 | C151: 49.41423412 | D151: 0.5703671329
A152: 34.20734709 | B152: 0.819614978 | C152: 49.77487176 | D152: 0.5703671329
A153: 34.44777218 | B153: 0.819614978 | C153: 50.1355094 | D153: 0.5703671329
A154: 34.68819727 | B154: 0.819614978 | C154: 50.49614703 | D154: 0.5703671329
A155: 34.92862236 | B155: 0.819614978 | C155: 50.85678467 | D155: 0.5714907912
A156: 35.16904745 | B156: 0.819614978 | C156: 51.21742231 | D156: 0.5703671329
A157: 35.40947255 | B157: 0.819614978 | C157: 51.57805995 | D157: 0.5703671329
A158: 35.64989764 | B158: 0.819614978 | C158: 51.93869758 | D158: 0.5703671329
A159: 36.01053527 | B159: 0.8211472394 | C159: 52.29933522 | D159: 0.5703671329
A160: 36.25096037 | B160: 0.8206364856 | C160: 52.65997286 | D160: 0.5703671329
A161: 36.52143859 | B161: 0.819614978 | C161: 53.02061049 | D161: 0.5703671329
A162: 36.73181055 | B162: 0.8211472394 | C162: 53.38124813 | D162: 0.5703671329
A163: 37.09244819 | B163: 0.819614978 | C163: 53.74188577 | D163: 0.5703671329
A164: 37.33287328 | B164: 0.819614978 | C164: 54 | D164: 0.5703671329
A165: 37.57329837 | B165: 0.819614978 | C165: 55 | D165: 0.5703671329
A166: 37.81372346 | B166: 0.819614978 | C166: 56 | D166: 0.5708041958
A167: 38.05414855 | B167: 0.819614978
A168: 38.29457364 | B168: 0.819614978
A169: 38.53499873 | B169: 0.819614978
A170: 38.77542383 | B170: 0.819614978
A171: 39.01584892 | B171: 0.819614978
A172: 39.25627401 | B172: 0.819614978
A173: 39.4966991 | B173: 0.8193596012
A174: 39.73712419 | B174: 0.8201257318
A175: 40.09776183 | B175: 0.8206364856
A176: 40.42834633 | B176: 0.8199554806
A177: 40.70884227 | B177: 0.8199554806
A178: 40.90919651 | B178: 0.8192744755
A179: 41.23978101 | B179: 0.8201257318
A180: 41.47018839 | B180: 0.8192744755
A181: 41.79075518 | B181: 0.8199554806
A182: 42.02116256 | B182: 0.819614978
A183: 42.26158765 | B183: 0.819614978
A184: 42.50201274 | B184: 0.819614978
A185: 42.74243783 | B185: 0.819614978
A186: 42.92275665 | B186: 0.8191042243
A187: 43.27337658 | B187: 0.8199554806
A188: 43.58392566 | B188: 0.8193596012
A189: 43.82435075 | B189: 0.819614978
A190: 44.06477584 | B190: 0.819614978
A191: 44.3653072 | B191: 0.819614978
A192: 44.60573229 | B192: 0.819614978
A193: 44.84615739 | B193: 0.819614978
A194: 45.08658248 | B194: 0.819614978
A195: 45.32700757 | B195: 0.819614978
A196: 45.56743266 | B196: 0.819614978
A197: 45.80785775 | B197: 0.819614978
A198: 46.04828284 | B198: 0.819614978
A199: 46.28870793 | B199: 0.819614978
A200: 46.52913303 | B200: 0.819614978
... 32 more rows

Sheet est_summary
A1: HR for death
A2: HR | B2: HR est | C2: LB | D2: LB est | E2: HB | F2: HB est | G2: p | H2: p est
A3: 0.37 | B3: 0.3765 | C3: 0.18 | D3: 0.1855 | E3: 0.77 | F3: 0.764 | G3: 0.004 | H3: 0.00682

Sheet flex_fit
A1: arm_0 "sham control" | J1: arm_0 "sham control"
A2: Распределение | B2: AIC | C2: AIC, № | D2: BIC | E2: BIC, № | F2: Coeff. 1 | G2: Coeff. 2 | H2: Coeff. 3 | J2: week | K2: Weibull | L2: Gompertz | M2: Log-logistic | N2: Lognormal | O2: Generalised Gamma | P2: Exponential | Q2: est KM data | S2: week | T2: Weibull | U2: Gompertz | V2: Log-logistic | W2: Lognormal | X2: Generalised Gamma | Y2: Exponential | Z2: est KM data
A3: Weibull | B3: 185.905 | C3: =_xlfn.RANK.AVG(B3,B$3:B$8,1) -> 6 | D3: 189.3321 | E3: =_xlfn.RANK.AVG(D3,D$3:D$8,1) -> 6 | F3: 0.855 | G3: 88.674 | J3: 0 | K3: =Fnc_Survival(K$2,$J3,VLOOKUP(K$2,$A$3:$H$8,6,FALSE),VLOOKUP(K$2,$A$3:$H$8,7,FALSE),VLOOKUP(K$2,$A$3:$H$8,8,FALSE)) -> 1 | L3: =Fnc_Survival(L$2,$J3,VLOOKUP(L$2,$A$3:$H$8,6,FALSE),VLOOKUP(L$2,$A$3:$H$8,7,FALSE),VLOOKUP(L$2,$A$3:$H$8,8,FALSE)) -> 1 | M3: =Fnc_Survival(M$2,$J3,VLOOKUP(M$2,$A$3:$H$8,6,FALSE),VLOOKUP(M$2,$A$3:$H$8,7,FALSE),VLOOKUP(M$2,$A$3:$H$8,8,FALSE)) -> 1 | N3: =Fnc_Survival(N$2,$J3,VLOOKUP(N$2,$A$3:$H$8,6,FALSE),VLOOKUP(N$2,$A$3:$H$8,7,FALSE),VLOOKUP(N$2,$A$3:$H$8,8,FALSE)) -> 1 | O3: =Fnc_Survival(O$2,$J3,VLOOKUP(O$2,$A$3:$H$8,6,FALSE),VLOOKUP(O$2,$A$3:$H$8,7,FALSE),VLOOKUP(O$2,$A$3:$H$8,8,FALSE)) -> 1 | P3: =Fnc_Survival(P$2,$J3,VLOOKUP(P$2,$A$3:$H$8,6,FALSE),VLOOKUP(P$2,$A$3:$H$8,7,FALSE),VLOOKUP(P$2,$A$3:$H$8,8,FALSE)) -> 1 | Q3: 1 | S3: 0 | T3: =Fnc_Survival(T$2,$J3,VLOOKUP(T$2,$A$12:$H$18,6,FALSE),VLOOKUP(T$2,$A$12:$H$18,7,FALSE),VLOOKUP(T$2,$A$12:$H$18,8,FALSE)) -> 1 | U3: =Fnc_Survival(U$2,$J3,VLOOKUP(U$2,$A$12:$H$18,6,FALSE),VLOOKUP(U$2,$A$12:$H$18,7,FALSE),VLOOKUP(U$2,$A$12:$H$18,8,FALSE)) -> 1 | V3: 1 | W3: 1 | X3: 1 | Y3: 1 | Z3: 1
A4: Gompertz | B4: 183.4371 | C4: =_xlfn.RANK.AVG(B4,B$3:B$8,1) -> 3 | D4: 186.8643 | E4: =_xlfn.RANK.AVG(D4,D$3:D$8,1) -> 3 | F4: -0.03010691 | G4: =EXP(-3.80363654) -> 0.02228956739 | J4: 1 | K4: =Fnc_Survival(K$2,$J4,VLOOKUP(K$2,$A$3:$H$8,6,FALSE),VLOOKUP(K$2,$A$3:$H$8,7,FALSE),VLOOKUP(K$2,$A$3:$H$8,8,FALSE)) -> 0.9786228264 | L4: =Fnc_Survival(L$2,$J4,VLOOKUP(L$2,$A$3:$H$8,6,FALSE),VLOOKUP(L$2,$A$3:$H$8,7,FALSE),VLOOKUP(L$2,$A$3:$H$8,8,FALSE)) -> 0.9782819339 | M4: =Fnc_Survival(M$2,$J4,VLOOKUP(M$2,$A$3:$H$8,6,FALSE),VLOOKUP(M$2,$A$3:$H$8,7,FALSE),VLOOKUP(M$2,$A$3:$H$8,8,FALSE)) -> 0.9835237922 | N4: =Fnc_Survival(N$2,$J4,VLOOKUP(N$2,$A$3:$H$8,6,FALSE),VLOOKUP(N$2,$A$3:$H$8,7,FALSE),VLOOKUP(N$2,$A$3:$H$8,8,FALSE)) -> 0.9927975474 | O4: =Fnc_Survival(O$2,$J4,VLOOKUP(O$2,$A$3:$H$8,6,FALSE),VLOOKUP(O$2,$A$3:$H$8,7,FALSE),VLOOKUP(O$2,$A$3:$H$8,8,FALSE)) -> 0.999999862 | P4: =Fnc_Survival(P$2,$J4,VLOOKUP(P$2,$A$3:$H$8,6,FALSE),VLOOKUP(P$2,$A$3:$H$8,7,FALSE),VLOOKUP(P$2,$A$3:$H$8,8,FALSE)) -> 0.987379649 | Q4: 1 | S4: 1 | T4: =Fnc_Survival(T$2,$J4,VLOOKUP(T$2,$A$12:$H$18,6,FALSE),VLOOKUP(T$2,$A$12:$H$18,7,FALSE),VLOOKUP(T$2,$A$12:$H$18,8,FALSE)) -> 0.9889090498 | U4: 0.9901260657 | V4: 0.9897834527 | W4: 0.9937866153 | X4: 0.9968152501 | Y4: 0.995350841 | Z4: 0.9875
A5: Log-logistic | B5: 184.5383 | C5: =_xlfn.RANK.AVG(B5,B$3:B$8,1) -> 5 | D5: 187.9654 | E5: =_xlfn.RANK.AVG(D5,D$3:D$8,1) -> 5 | F5: =EXP(0.0133722) -> 1.013462008 | G5: =EXP(4.0349065) -> 56.53763372 | J5: 2 | K5: =Fnc_Survival(K$2,$J5,VLOOKUP(K$2,$A$3:$H$8,6,FALSE),VLOOKUP(K$2,$A$3:$H$8,7,FALSE),VLOOKUP(K$2,$A$3:$H$8,8,FALSE)) -> 0.9616685576 | L5: =Fnc_Survival(L$2,$J5,VLOOKUP(L$2,$A$3:$H$8,6,FALSE),VLOOKUP(L$2,$A$3:$H$8,7,FALSE),VLOOKUP(L$2,$A$3:$H$8,8,FALSE)) -> 0.9576589825 | M5: =Fnc_Survival(M$2,$J5,VLOOKUP(M$2,$A$3:$H$8,6,FALSE),VLOOKUP(M$2,$A$3:$H$8,7,FALSE),VLOOKUP(M$2,$A$3:$H$8,8,FALSE)) -> 0.9672877409 | N5: =Fnc_Survival(N$2,$J5,VLOOKUP(N$2,$A$3:$H$8,6,FALSE),VLOOKUP(N$2,$A$3:$H$8,7,FALSE),VLOOKUP(N$2,$A$3:$H$8,8,FALSE)) -> 0.9788334865 | O5: =Fnc_Survival(O$2,$J5,VLOOKUP(O$2,$A$3:$H$8,6,FALSE),VLOOKUP(O$2,$A$3:$H$8,7,FALSE),VLOOKUP(O$2,$A$3:$H$8,8,FALSE)) -> 0.998097406 | P5: =Fnc_Survival(P$2,$J5,VLOOKUP(P$2,$A$3:$H$8,6,FALSE),VLOOKUP(P$2,$A$3:$H$8,7,FALSE),VLOOKUP(P$2,$A$3:$H$8,8,FALSE)) -> 0.9749185713 | Q5: 0.9512 | S5: 2 | T5: 0.981212656 | U5: 0.9807538161 | V5: 0.9821157715 | W5: 0.9862977604 | X5: 0.9890349286 | Y5: 0.9907232966 | Z5: 0.9875
A6: Lognormal | B6: 183.0342 | C6: =_xlfn.RANK.AVG(B6,B$3:B$8,1) -> 2 | D6: 186.4613 | E6: =_xlfn.RANK.AVG(D6,D$3:D$8,1) -> 2 | F6: 4.0696826 | G6: =EXP(0.5087004) -> 1.663128388 | J6: 3 | K6: =Fnc_Survival(K$2,$J6,VLOOKUP(K$2,$A$3:$H$8,6,FALSE),VLOOKUP(K$2,$A$3:$H$8,7,FALSE),VLOOKUP(K$2,$A$3:$H$8,8,FALSE)) -> 0.9462195908 | L6: =Fnc_Survival(L$2,$J6,VLOOKUP(L$2,$A$3:$H$8,6,FALSE),VLOOKUP(L$2,$A$3:$H$8,7,FALSE),VLOOKUP(L$2,$A$3:$H$8,8,FALSE)) -> 0.9380633564 | M6: =Fnc_Survival(M$2,$J6,VLOOKUP(M$2,$A$3:$H$8,6,FALSE),VLOOKUP(M$2,$A$3:$H$8,7,FALSE),VLOOKUP(M$2,$A$3:$H$8,8,FALSE)) -> 0.9514698445 | N6: =Fnc_Survival(N$2,$J6,VLOOKUP(N$2,$A$3:$H$8,6,FALSE),VLOOKUP(N$2,$A$3:$H$8,7,FALSE),VLOOKUP(N$2,$A$3:$H$8,8,FALSE)) -> 0.9629855516 | O6: =Fnc_Survival(O$2,$J6,VLOOKUP(O$2,$A$3:$H$8,6,FALSE),VLOOKUP(O$2,$A$3:$H$8,7,FALSE),VLOOKUP(O$2,$A$3:$H$8,8,FALSE)) -> 0.983266258 | P6: =Fnc_Survival(P$2,$J6,VLOOKUP(P$2,$A$3:$H$8,6,FALSE),VLOOKUP(P$2,$A$3:$H$8,7,FALSE),VLOOKUP(P$2,$A$3:$H$8,8,FALSE)) -> 0.9626147568 | Q6: 0.9512 | S6: 3 | T6: 0.9744578846 | U6: 0.9718541694 | V6: 0.9752462747 | W6: 0.9790081496 | X6: 0.9804024465 | Y6: 0.9861172664 | Z6: 0.9875
A7: Generalised Gamma | B7: 181.9391 | C7: =_xlfn.RANK.AVG(B7,B$3:B$8,1) -> 1 | D7: 187.0798 | E7: =_xlfn.RANK.AVG(D7,D$3:D$8,1) -> 4 | F7: 2.3592446 | G7: =EXP(0.3895037) -> 1.47624795 | H7: -2.836 | J7: 4 | K7: =Fnc_Survival(K$2,$J7,VLOOKUP(K$2,$A$3:$H$8,6,FALSE),VLOOKUP(K$2,$A$3:$H$8,7,FALSE),VLOOKUP(K$2,$A$3:$H$8,8,FALSE)) -> 0.9317450064 | L7: =Fnc_Survival(L$2,$J7,VLOOKUP(L$2,$A$3:$H$8,6,FALSE),VLOOKUP(L$2,$A$3:$H$8,7,FALSE),VLOOKUP(L$2,$A$3:$H$8,8,FALSE)) -> 0.9194322839 | M7: =Fnc_Survival(M$2,$J7,VLOOKUP(M$2,$A$3:$H$8,6,FALSE),VLOOKUP(M$2,$A$3:$H$8,7,FALSE),VLOOKUP(M$2,$A$3:$H$8,8,FALSE)) -> 0.936091914 | N7: =Fnc_Survival(N$2,$J7,VLOOKUP(N$2,$A$3:$H$8,6,FALSE),VLOOKUP(N$2,$A$3:$H$8,7,FALSE),VLOOKUP(N$2,$A$3:$H$8,8,FALSE)) -> 0.946677508 | O7: =Fnc_Survival(O$2,$J7,VLOOKUP(O$2,$A$3:$H$8,6,FALSE),VLOOKUP(O$2,$A$3:$H$8,7,FALSE),VLOOKUP(O$2,$A$3:$H$8,8,FALSE)) -> 0.9579240639 | P7: =Fnc_Survival(P$2,$J7,VLOOKUP(P$2,$A$3:$H$8,6,FALSE),VLOOKUP(P$2,$A$3:$H$8,7,FALSE),VLOOKUP(P$2,$A$3:$H$8,8,FALSE)) -> 0.9504662207 | Q7: 0.9512 | S7: 4 | T7: 0.9682618565 | U7: 0.9634000238 | V7: 0.9688743416 | W7: 0.972037995 | X7: 0.9719153393 | Y7: 0.9815326504 | Z7: 0.9875
A8: Exponential | B8: 184.4474 | C8: =_xlfn.RANK.AVG(B8,B$3:B$8,1) -> 4 | D8: 186.161 | E8: =_xlfn.RANK.AVG(D8,D$3:D$8,1) -> 1 | F8: =EXP(-4.366101) -> 0.01270066404 | J8: 5 | K8: =Fnc_Survival(K$2,$J8,VLOOKUP(K$2,$A$3:$H$8,6,FALSE),VLOOKUP(K$2,$A$3:$H$8,7,FALSE),VLOOKUP(K$2,$A$3:$H$8,8,FALSE)) -> 0.9180011827 | L8: =Fnc_Survival(L$2,$J8,VLOOKUP(L$2,$A$3:$H$8,6,FALSE),VLOOKUP(L$2,$A$3:$H$8,7,FALSE),VLOOKUP(L$2,$A$3:$H$8,8,FALSE)) -> 0.9017075819 | M8: =Fnc_Survival(M$2,$J8,VLOOKUP(M$2,$A$3:$H$8,6,FALSE),VLOOKUP(M$2,$A$3:$H$8,7,FALSE),VLOOKUP(M$2,$A$3:$H$8,8,FALSE)) -> 0.9211532458 | N8: =Fnc_Survival(N$2,$J8,VLOOKUP(N$2,$A$3:$H$8,6,FALSE),VLOOKUP(N$2,$A$3:$H$8,7,FALSE),VLOOKUP(N$2,$A$3:$H$8,8,FALSE)) -> 0.9304682259 | O8: =Fnc_Survival(O$2,$J8,VLOOKUP(O$2,$A$3:$H$8,6,FALSE),VLOOKUP(O$2,$A$3:$H$8,7,FALSE),VLOOKUP(O$2,$A$3:$H$8,8,FALSE)) -> 0.9300174366 | P8: =Fnc_Survival(P$2,$J8,VLOOKUP(P$2,$A$3:$H$8,6,FALSE),VLOOKUP(P$2,$A$3:$H$8,7,FALSE),VLOOKUP(P$2,$A$3:$H$8,8,FALSE)) -> 0.9384710034 | Q8: 0.878 | S8: 5 | T8: 0.9624580562 | U8: 0.9553660996 | V8: 0.9628648053 | W8: 0.9653879705 | X8: 0.9638330349 | Y8: 0.976969349 | Z8: 0.9875
J9: 6 | K9: =Fnc_Survival(K$2,$J9,VLOOKUP(K$2,$A$3:$H$8,6,FALSE),VLOOKUP(K$2,$A$3:$H$8,7,FALSE),VLOOKUP(K$2,$A$3:$H$8,8,FALSE)) -> 0.9048471092 | L9: =Fnc_Survival(L$2,$J9,VLOOKUP(L$2,$A$3:$H$8,6,FALSE),VLOOKUP(L$2,$A$3:$H$8,7,FALSE),VLOOKUP(L$2,$A$3:$H$8,8,FALSE)) -> 0.8848352692 | M9: =Fnc_Survival(M$2,$J9,VLOOKUP(M$2,$A$3:$H$8,6,FALSE),VLOOKUP(M$2,$A$3:$H$8,7,FALSE),VLOOKUP(M$2,$A$3:$H$8,8,FALSE)) -> 0.9066452328 | N9: =Fnc_Survival(N$2,$J9,VLOOKUP(N$2,$A$3:$H$8,6,FALSE),VLOOKUP(N$2,$A$3:$H$8,7,FALSE),VLOOKUP(N$2,$A$3:$H$8,8,FALSE)) -> 0.9146037235 | O9: =Fnc_Survival(O$2,$J9,VLOOKUP(O$2,$A$3:$H$8,6,FALSE),VLOOKUP(O$2,$A$3:$H$8,7,FALSE),VLOOKUP(O$2,$A$3:$H$8,8,FALSE)) -> 0.9031920961 | P9: =Fnc_Survival(P$2,$J9,VLOOKUP(P$2,$A$3:$H$8,6,FALSE),VLOOKUP(P$2,$A$3:$H$8,7,FALSE),VLOOKUP(P$2,$A$3:$H$8,8,FALSE)) -> 0.9266271699 | Q9: 0.878 | S9: 6 | T9: 0.9569540048 | U9: 0.9477287954 | V9: 0.9571406486 | W9: 0.9590354845 | X9: 0.9562097854 | Y9: 0.9724272631 | Z9: 0.975
J10: 7 | K10: =Fnc_Survival(K$2,$J10,VLOOKUP(K$2,$A$3:$H$8,6,FALSE),VLOOKUP(K$2,$A$3:$H$8,7,FALSE),VLOOKUP(K$2,$A$3:$H$8,8,FALSE)) -> 0.8921904507 | L10: =Fnc_Survival(L$2,$J10,VLOOKUP(L$2,$A$3:$H$8,6,FALSE),VLOOKUP(L$2,$A$3:$H$8,7,FALSE),VLOOKUP(L$2,$A$3:$H$8,8,FALSE)) -> 0.8687652157 | M10: =Fnc_Survival(M$2,$J10,VLOOKUP(M$2,$A$3:$H$8,6,FALSE),VLOOKUP(M$2,$A$3:$H$8,7,FALSE),VLOOKUP(M$2,$A$3:$H$8,8,FALSE)) -> 0.8925559003 | N10: =Fnc_Survival(N$2,$J10,VLOOKUP(N$2,$A$3:$H$8,6,FALSE),VLOOKUP(N$2,$A$3:$H$8,7,FALSE),VLOOKUP(N$2,$A$3:$H$8,8,FALSE)) -> 0.8991943653 | O10: =Fnc_Survival(O$2,$J10,VLOOKUP(O$2,$A$3:$H$8,6,FALSE),VLOOKUP(O$2,$A$3:$H$8,7,FALSE),VLOOKUP(O$2,$A$3:$H$8,8,FALSE)) -> 0.8785678669 | P10: =Fnc_Survival(P$2,$J10,VLOOKUP(P$2,$A$3:$H$8,6,FALSE),VLOOKUP(P$2,$A$3:$H$8,7,FALSE),VLOOKUP(P$2,$A$3:$H$8,8,FALSE)) -> 0.9149328098 | Q10: 0.878 | S10: 7 | T10: =Fnc_Survival(T$2,$J10,VLOOKUP(T$2,$A$12:$H$18,6,FALSE),VLOOKUP(T$2,$A$12:$H$18,7,FALSE),VLOOKUP(T$2,$A$12:$H$18,8,FALSE)) -> 0.9516912466 | U10: 0.9404660571 | V10: 0.951652116 | W10: 0.952954369 | X10: 0.949034815 | Y10: 0.9679062941 | Z10: 0.9625
A11: arm_1 "nusinersen" | J11: 8 | K11: =Fnc_Survival(K$2,$J11,VLOOKUP(K$2,$A$3:$H$8,6,FALSE),VLOOKUP(K$2,$A$3:$H$8,7,FALSE),VLOOKUP(K$2,$A$3:$H$8,8,FALSE)) -> 0.8799658405 | L11: =Fnc_Survival(L$2,$J11,VLOOKUP(L$2,$A$3:$H$8,6,FALSE),VLOOKUP(L$2,$A$3:$H$8,7,FALSE),VLOOKUP(L$2,$A$3:$H$8,8,FALSE)) -> 0.8534508243 | M11: =Fnc_Survival(M$2,$J11,VLOOKUP(M$2,$A$3:$H$8,6,FALSE),VLOOKUP(M$2,$A$3:$H$8,7,FALSE),VLOOKUP(M$2,$A$3:$H$8,8,FALSE)) -> 0.8788717885 | N11: =Fnc_Survival(N$2,$J11,VLOOKUP(N$2,$A$3:$H$8,6,FALSE),VLOOKUP(N$2,$A$3:$H$8,7,FALSE),VLOOKUP(N$2,$A$3:$H$8,8,FALSE)) -> 0.884285353 | O11: =Fnc_Survival(O$2,$J11,VLOOKUP(O$2,$A$3:$H$8,6,FALSE),VLOOKUP(O$2,$A$3:$H$8,7,FALSE),VLOOKUP(O$2,$A$3:$H$8,8,FALSE)) -> 0.8562989512 | P11: =Fnc_Survival(P$2,$J11,VLOOKUP(P$2,$A$3:$H$8,6,FALSE),VLOOKUP(P$2,$A$3:$H$8,7,FALSE),VLOOKUP(P$2,$A$3:$H$8,8,FALSE)) -> 0.9033860366 | Q11: 0.878 | S11: 8 | T11: 0.9466296864 | U11: 0.9335572589 | V11: 0.9463644105 | W11: 0.9471198787 | X11: 0.9422767933 | Y11: 0.9634063438 | Z11: 0.9498
A12: Распределение | B12: AIC | C12: AIC, № | D12: BIC | E12: BIC, № | F12: Coeff. 1 | G12: Coeff. 2 | H12: Coeff. 3 | J12: 9 | K12: =Fnc_Survival(K$2,$J12,VLOOKUP(K$2,$A$3:$H$8,6,FALSE),VLOOKUP(K$2,$A$3:$H$8,7,FALSE),VLOOKUP(K$2,$A$3:$H$8,8,FALSE)) -> 0.8681244315 | L12: =Fnc_Survival(L$2,$J12,VLOOKUP(L$2,$A$3:$H$8,6,FALSE),VLOOKUP(L$2,$A$3:$H$8,7,FALSE),VLOOKUP(L$2,$A$3:$H$8,8,FALSE)) -> 0.8388487431 | M12: =Fnc_Survival(M$2,$J12,VLOOKUP(M$2,$A$3:$H$8,6,FALSE),VLOOKUP(M$2,$A$3:$H$8,7,FALSE),VLOOKUP(M$2,$A$3:$H$8,8,FALSE)) -> 0.8655788638 | N12: =Fnc_Survival(N$2,$J12,VLOOKUP(N$2,$A$3:$H$8,6,FALSE),VLOOKUP(N$2,$A$3:$H$8,7,FALSE),VLOOKUP(N$2,$A$3:$H$8,8,FALSE)) -> 0.8698886644 | O12: =Fnc_Survival(O$2,$J12,VLOOKUP(O$2,$A$3:$H$8,6,FALSE),VLOOKUP(O$2,$A$3:$H$8,7,FALSE),VLOOKUP(O$2,$A$3:$H$8,8,FALSE)) -> 0.8362172825 | P12: =Fnc_Survival(P$2,$J12,VLOOKUP(P$2,$A$3:$H$8,6,FALSE),VLOOKUP(P$2,$A$3:$H$8,7,FALSE),VLOOKUP(P$2,$A$3:$H$8,8,FALSE)) -> 0.8919849878 | Q12: 0.878 | S12: 9 | T12: 0.9417402187 | U12: 0.926983095 | V12: 0.9412518217 | W12: 0.9415098817 | X12: 0.9358995325 | Y12: 0.9589273145 | Z12: 0.9372
A13: Weibull | B13: 181.0911 | C13: =_xlfn.RANK.AVG(B13,B$13:B$18,1) -> 6 | D13: 185.8552 | E13: =_xlfn.RANK.AVG(D13,D$13:D$18,1) -> 5 | F13: 0.766 | G13: 354.08 | J13: 10 | K13: =Fnc_Survival(K$2,$J13,VLOOKUP(K$2,$A$3:$H$8,6,FALSE),VLOOKUP(K$2,$A$3:$H$8,7,FALSE),VLOOKUP(K$2,$A$3:$H$8,8,FALSE)) -> 0.8566282378 | L13: =Fnc_Survival(L$2,$J13,VLOOKUP(L$2,$A$3:$H$8,6,FALSE),VLOOKUP(L$2,$A$3:$H$8,7,FALSE),VLOOKUP(L$2,$A$3:$H$8,8,FALSE)) -> 0.8249186032 | M13: =Fnc_Survival(M$2,$J13,VLOOKUP(M$2,$A$3:$H$8,6,FALSE),VLOOKUP(M$2,$A$3:$H$8,7,FALSE),VLOOKUP(M$2,$A$3:$H$8,8,FALSE)) -> 0.8526630023 | N13: =Fnc_Survival(N$2,$J13,VLOOKUP(N$2,$A$3:$H$8,6,FALSE),VLOOKUP(N$2,$A$3:$H$8,7,FALSE),VLOOKUP(N$2,$A$3:$H$8,8,FALSE)) -> 0.8559988395 | O13: =Fnc_Survival(O$2,$J13,VLOOKUP(O$2,$A$3:$H$8,6,FALSE),VLOOKUP(O$2,$A$3:$H$8,7,FALSE),VLOOKUP(O$2,$A$3:$H$8,8,FALSE)) -> 0.8180702787 | P13: =Fnc_Survival(P$2,$J13,VLOOKUP(P$2,$A$3:$H$8,6,FALSE),VLOOKUP(P$2,$A$3:$H$8,7,FALSE),VLOOKUP(P$2,$A$3:$H$8,8,FALSE)) -> 0.8807278242 | Q13: 0.8537 | S13: 10 | T13: 0.9370008147 | U13: 0.9207254805 | V13: 0.9362945683 | W13: 0.9361049313 | X13: 0.9298677337 | Y13: 0.9544691089 | Z13: 0.9372
A14: Gompertz | B14: 177.8347 | C14: =_xlfn.RANK.AVG(B14,B$13:B$18,1) -> 1 | D14: 182.5987 | E14: =_xlfn.RANK.AVG(D14,D$13:D$18,1) -> 1 | F14: -0.042428 | G14: 0.010135 | J14: 11 | K14: =Fnc_Survival(K$2,$J14,VLOOKUP(K$2,$A$3:$H$8,6,FALSE),VLOOKUP(K$2,$A$3:$H$8,7,FALSE),VLOOKUP(K$2,$A$3:$H$8,8,FALSE)) -> 0.8454468024 | L14: =Fnc_Survival(L$2,$J14,VLOOKUP(L$2,$A$3:$H$8,6,FALSE),VLOOKUP(L$2,$A$3:$H$8,7,FALSE),VLOOKUP(L$2,$A$3:$H$8,8,FALSE)) -> 0.8116227809 | M14: =Fnc_Survival(M$2,$J14,VLOOKUP(M$2,$A$3:$H$8,6,FALSE),VLOOKUP(M$2,$A$3:$H$8,7,FALSE),VLOOKUP(M$2,$A$3:$H$8,8,FALSE)) -> 0.840110259 | N14: =Fnc_Survival(N$2,$J14,VLOOKUP(N$2,$A$3:$H$8,6,FALSE),VLOOKUP(N$2,$A$3:$H$8,7,FALSE),VLOOKUP(N$2,$A$3:$H$8,8,FALSE)) -> 0.8426012669 | O14: =Fnc_Survival(O$2,$J14,VLOOKUP(O$2,$A$3:$H$8,6,FALSE),VLOOKUP(O$2,$A$3:$H$8,7,FALSE),VLOOKUP(O$2,$A$3:$H$8,8,FALSE)) -> 0.8016048226 | P14: =Fnc_Survival(P$2,$J14,VLOOKUP(P$2,$A$3:$H$8,6,FALSE),VLOOKUP(P$2,$A$3:$H$8,7,FALSE),VLOOKUP(P$2,$A$3:$H$8,8,FALSE)) -> 0.8696127299 | Q14: 0.8293 | S14: 11 | T14: 0.9323942577 | U14: 0.9147674607 | V14: 0.9314769506 | W14: 0.930888013 | X14: 0.9241489791 | Y14: 0.9500316302 | Z14: 0.9372
A15: Log-logistic | B15: 180.6421 | C15: =_xlfn.RANK.AVG(B15,B$13:B$18,1) -> 4 | D15: 185.4062 | E15: =_xlfn.RANK.AVG(D15,D$13:D$18,1) -> 4 | F15: 0.819 | G15: 266.193 | J15: 12 | K15: =Fnc_Survival(K$2,$J15,VLOOKUP(K$2,$A$3:$H$8,6,FALSE),VLOOKUP(K$2,$A$3:$H$8,7,FALSE),VLOOKUP(K$2,$A$3:$H$8,8,FALSE)) -> 0.8345551062 | L15: =Fnc_Survival(L$2,$J15,VLOOKUP(L$2,$A$3:$H$8,6,FALSE),VLOOKUP(L$2,$A$3:$H$8,7,FALSE),VLOOKUP(L$2,$A$3:$H$8,8,FALSE)) -> 0.798926181 | M15: =Fnc_Survival(M$2,$J15,VLOOKUP(M$2,$A$3:$H$8,6,FALSE),VLOOKUP(M$2,$A$3:$H$8,7,FALSE),VLOOKUP(M$2,$A$3:$H$8,8,FALSE)) -> 0.8279070227 | N15: =Fnc_Survival(N$2,$J15,VLOOKUP(N$2,$A$3:$H$8,6,FALSE),VLOOKUP(N$2,$A$3:$H$8,7,FALSE),VLOOKUP(N$2,$A$3:$H$8,8,FALSE)) -> 0.8296767217 | O15: =Fnc_Survival(O$2,$J15,VLOOKUP(O$2,$A$3:$H$8,6,FALSE),VLOOKUP(O$2,$A$3:$H$8,7,FALSE),VLOOKUP(O$2,$A$3:$H$8,8,FALSE)) -> 0.786594039 | P15: =Fnc_Survival(P$2,$J15,VLOOKUP(P$2,$A$3:$H$8,6,FALSE),VLOOKUP(P$2,$A$3:$H$8,7,FALSE),VLOOKUP(P$2,$A$3:$H$8,8,FALSE)) -> 0.858637912 | Q15: 0.7805 | S15: 12 | T15: 0.9279067446 | U15: 0.9090931288 | V15: 0.9267861985 | W15: 0.9258442217 | X15: 0.9187142409 | Y15: 0.945614782 | Z15: 0.8992
A16: Lognormal | B16: 179.5519 | C16: =_xlfn.RANK.AVG(B16,B$13:B$18,1) -> 2 | D16: 184.316 | E16: =_xlfn.RANK.AVG(D16,D$13:D$18,1) -> 3 | F16: 5.892 | G16: 2.357 | J16: 13 | K16: =Fnc_Survival(K$2,$J16,VLOOKUP(K$2,$A$3:$H$8,6,FALSE),VLOOKUP(K$2,$A$3:$H$8,7,FALSE),VLOOKUP(K$2,$A$3:$H$8,8,FALSE)) -> 0.8239321895 | L16: =Fnc_Survival(L$2,$J16,VLOOKUP(L$2,$A$3:$H$8,6,FALSE),VLOOKUP(L$2,$A$3:$H$8,7,FALSE),VLOOKUP(L$2,$A$3:$H$8,8,FALSE)) -> 0.7867960393 | M16: =Fnc_Survival(M$2,$J16,VLOOKUP(M$2,$A$3:$H$8,6,FALSE),VLOOKUP(M$2,$A$3:$H$8,7,FALSE),VLOOKUP(M$2,$A$3:$H$8,8,FALSE)) -> 0.816040103 | N16: =Fnc_Survival(N$2,$J16,VLOOKUP(N$2,$A$3:$H$8,6,FALSE),VLOOKUP(N$2,$A$3:$H$8,7,FALSE),VLOOKUP(N$2,$A$3:$H$8,8,FALSE)) -> 0.8172039181 | O16: =Fnc_Survival(O$2,$J16,VLOOKUP(O$2,$A$3:$H$8,6,FALSE),VLOOKUP(O$2,$A$3:$H$8,7,FALSE),VLOOKUP(O$2,$A$3:$H$8,8,FALSE)) -> 0.7728429782 | P16: =Fnc_Survival(P$2,$J16,VLOOKUP(P$2,$A$3:$H$8,6,FALSE),VLOOKUP(P$2,$A$3:$H$8,7,FALSE),VLOOKUP(P$2,$A$3:$H$8,8,FALSE)) -> 0.8478016002 | Q16: 0.7805 | S16: 13 | T16: 0.9235269779 | U16: 0.9036875497 | V16: 0.9222117145 | W16: 0.9209604541 | X16: 0.9135378047 | Y16: 0.9412184685 | Z16: 0.8992
A17: Generalised Gamma | B17: 180.8325 | C17: =_xlfn.RANK.AVG(B17,B$13:B$18,1) -> 5 | D17: 187.9786 | E17: =_xlfn.RANK.AVG(D17,D$13:D$18,1) -> 6 | F17: 5.07 | G17: 3.41 | H17: -1.51 | J17: 14 | K17: =Fnc_Survival(K$2,$J17,VLOOKUP(K$2,$A$3:$H$8,6,FALSE),VLOOKUP(K$2,$A$3:$H$8,7,FALSE),VLOOKUP(K$2,$A$3:$H$8,8,FALSE)) -> 0.8135602049 | L17: =Fnc_Survival(L$2,$J17,VLOOKUP(L$2,$A$3:$H$8,6,FALSE),VLOOKUP(L$2,$A$3:$H$8,7,FALSE),VLOOKUP(L$2,$A$3:$H$8,8,FALSE)) -> 0.7752017427 | M17: =Fnc_Survival(M$2,$J17,VLOOKUP(M$2,$A$3:$H$8,6,FALSE),VLOOKUP(M$2,$A$3:$H$8,7,FALSE),VLOOKUP(M$2,$A$3:$H$8,8,FALSE)) -> 0.8044967782 | N17: =Fnc_Survival(N$2,$J17,VLOOKUP(N$2,$A$3:$H$8,6,FALSE),VLOOKUP(N$2,$A$3:$H$8,7,FALSE),VLOOKUP(N$2,$A$3:$H$8,8,FALSE)) -> 0.8051609673 | O17: =Fnc_Survival(O$2,$J17,VLOOKUP(O$2,$A$3:$H$8,6,FALSE),VLOOKUP(O$2,$A$3:$H$8,7,FALSE),VLOOKUP(O$2,$A$3:$H$8,8,FALSE)) -> 0.7601868728 | P17: =Fnc_Survival(P$2,$J17,VLOOKUP(P$2,$A$3:$H$8,6,FALSE),VLOOKUP(P$2,$A$3:$H$8,7,FALSE),VLOOKUP(P$2,$A$3:$H$8,8,FALSE)) -> 0.8371020465 | Q17: 0.7317 | S17: 14 | T17: 0.91924555 | U17: 0.8985366908 | V17: 0.9177445583 | W17: 0.9162251388 | X17: 0.9085969779 | Y17: 0.9368425942 | Z17: 0.8992
A18: Exponential | B18: 180.3284 | C18: =_xlfn.RANK.AVG(B18,B$13:B$18,1) -> 3 | D18: 182.7105 | E18: =_xlfn.RANK.AVG(D18,D$13:D$18,1) -> 2 | F18: 0.00466 | J18: 15 | K18: =Fnc_Survival(K$2,$J18,VLOOKUP(K$2,$A$3:$H$8,6,FALSE),VLOOKUP(K$2,$A$3:$H$8,7,FALSE),VLOOKUP(K$2,$A$3:$H$8,8,FALSE)) -> 0.8034237466 | L18: =Fnc_Survival(L$2,$J18,VLOOKUP(L$2,$A$3:$H$8,6,FALSE),VLOOKUP(L$2,$A$3:$H$8,7,FALSE),VLOOKUP(L$2,$A$3:$H$8,8,FALSE)) -> 0.7641146649 | M18: =Fnc_Survival(M$2,$J18,VLOOKUP(M$2,$A$3:$H$8,6,FALSE),VLOOKUP(M$2,$A$3:$H$8,7,FALSE),VLOOKUP(M$2,$A$3:$H$8,8,FALSE)) -> 0.7932648178 | N18: =Fnc_Survival(N$2,$J18,VLOOKUP(N$2,$A$3:$H$8,6,FALSE),VLOOKUP(N$2,$A$3:$H$8,7,FALSE),VLOOKUP(N$2,$A$3:$H$8,8,FALSE)) -> 0.7935262093 | O18: =Fnc_Survival(O$2,$J18,VLOOKUP(O$2,$A$3:$H$8,6,FALSE),VLOOKUP(O$2,$A$3:$H$8,7,FALSE),VLOOKUP(O$2,$A$3:$H$8,8,FALSE)) -> 0.7484871816 | P18: =Fnc_Survival(P$2,$J18,VLOOKUP(P$2,$A$3:$H$8,6,FALSE),VLOOKUP(P$2,$A$3:$H$8,7,FALSE),VLOOKUP(P$2,$A$3:$H$8,8,FALSE)) -> 0.8265375248 | Q18: 0.7317 | S18: 15 | T18: 0.9150545132 | U18: 0.8936273584 | V18: 0.9133770817 | W18: 0.911628008 | X18: 0.9038717406 | Y18: 0.932487064 | Z18: 0.8992
J19: 16 | K19: =Fnc_Survival(K$2,$J19,VLOOKUP(K$2,$A$3:$H$8,6,FALSE),VLOOKUP(K$2,$A$3:$H$8,7,FALSE),VLOOKUP(K$2,$A$3:$H$8,8,FALSE)) -> 0.7935093602 | L19: =Fnc_Survival(L$2,$J19,VLOOKUP(L$2,$A$3:$H$8,6,FALSE),VLOOKUP(L$2,$A$3:$H$8,7,FALSE),VLOOKUP(L$2,$A$3:$H$8,8,FALSE)) -> 0.7535080164 | M19: =Fnc_Survival(M$2,$J19,VLOOKUP(M$2,$A$3:$H$8,6,FALSE),VLOOKUP(M$2,$A$3:$H$8,7,FALSE),VLOOKUP(M$2,$A$3:$H$8,8,FALSE)) -> 0.7823324892 | N19: =Fnc_Survival(N$2,$J19,VLOOKUP(N$2,$A$3:$H$8,6,FALSE),VLOOKUP(N$2,$A$3:$H$8,7,FALSE),VLOOKUP(N$2,$A$3:$H$8,8,FALSE)) -> 0.7822786787 | O19: =Fnc_Survival(O$2,$J19,VLOOKUP(O$2,$A$3:$H$8,6,FALSE),VLOOKUP(O$2,$A$3:$H$8,7,FALSE),VLOOKUP(O$2,$A$3:$H$8,8,FALSE)) -> 0.737627372 | P19: =Fnc_Survival(P$2,$J19,VLOOKUP(P$2,$A$3:$H$8,6,FALSE),VLOOKUP(P$2,$A$3:$H$8,7,FALSE),VLOOKUP(P$2,$A$3:$H$8,8,FALSE)) -> 0.8161063312 | Q19: 0.7317 | S19: 16 | T19: 0.9109470691 | U19: 0.8889471391 | V19: 0.9091026639 | W19: 0.9071599071 | X19: 0.8993444017 | Y19: 0.9281517833 | Z19: 0.8992
J20: 17 | K20: =Fnc_Survival(K$2,$J20,VLOOKUP(K$2,$A$3:$H$8,6,FALSE),VLOOKUP(K$2,$A$3:$H$8,7,FALSE),VLOOKUP(K$2,$A$3:$H$8,8,FALSE)) -> 0.7838051772 | L20: =Fnc_Survival(L$2,$J20,VLOOKUP(L$2,$A$3:$H$8,6,FALSE),VLOOKUP(L$2,$A$3:$H$8,7,FALSE),VLOOKUP(L$2,$A$3:$H$8,8,FALSE)) -> 0.7433567068 | M20: =Fnc_Survival(M$2,$J20,VLOOKUP(M$2,$A$3:$H$8,6,FALSE),VLOOKUP(M$2,$A$3:$H$8,7,FALSE),VLOOKUP(M$2,$A$3:$H$8,8,FALSE)) -> 0.771688555 | N20: =Fnc_Survival(N$2,$J20,VLOOKUP(N$2,$A$3:$H$8,6,FALSE),VLOOKUP(N$2,$A$3:$H$8,7,FALSE),VLOOKUP(N$2,$A$3:$H$8,8,FALSE)) -> 0.771398353 | O20: =Fnc_Survival(O$2,$J20,VLOOKUP(O$2,$A$3:$H$8,6,FALSE),VLOOKUP(O$2,$A$3:$H$8,7,FALSE),VLOOKUP(O$2,$A$3:$H$8,8,FALSE)) -> 0.727509114 | P20: =Fnc_Survival(P$2,$J20,VLOOKUP(P$2,$A$3:$H$8,6,FALSE),VLOOKUP(P$2,$A$3:$H$8,7,FALSE),VLOOKUP(P$2,$A$3:$H$8,8,FALSE)) -> 0.8058067828 | Q20: 0.7065 | S20: 17 | T20: 0.9069173401 | U20: 0.8844843459 | V20: 0.9049155146 | W20: 0.9028126359 | X20: 0.8949992878 | Y20: 0.923836658 | Z20: 0.8861
J21: 18 | K21: =Fnc_Survival(K$2,$J21,VLOOKUP(K$2,$A$3:$H$8,6,FALSE),VLOOKUP(K$2,$A$3:$H$8,7,FALSE),VLOOKUP(K$2,$A$3:$H$8,8,FALSE)) -> 0.7743006364 | L21: =Fnc_Survival(L$2,$J21,VLOOKUP(L$2,$A$3:$H$8,6,FALSE),VLOOKUP(L$2,$A$3:$H$8,7,FALSE),VLOOKUP(L$2,$A$3:$H$8,8,FALSE)) -> 0.7336372197 | M21: =Fnc_Survival(M$2,$J21,VLOOKUP(M$2,$A$3:$H$8,6,FALSE),VLOOKUP(M$2,$A$3:$H$8,7,FALSE),VLOOKUP(M$2,$A$3:$H$8,8,FALSE)) -> 0.7613222626 | N21: =Fnc_Survival(N$2,$J21,VLOOKUP(N$2,$A$3:$H$8,6,FALSE),VLOOKUP(N$2,$A$3:$H$8,7,FALSE),VLOOKUP(N$2,$A$3:$H$8,8,FALSE)) -> 0.7608662704 | O21: =Fnc_Survival(O$2,$J21,VLOOKUP(O$2,$A$3:$H$8,6,FALSE),VLOOKUP(O$2,$A$3:$H$8,7,FALSE),VLOOKUP(O$2,$A$3:$H$8,8,FALSE)) -> 0.7180490581 | P21: =Fnc_Survival(P$2,$J21,VLOOKUP(P$2,$A$3:$H$8,6,FALSE),VLOOKUP(P$2,$A$3:$H$8,7,FALSE),VLOOKUP(P$2,$A$3:$H$8,8,FALSE)) -> 0.7956372184 | Q21: 0.6803 | S21: 18 | T21: 0.9029601969 | U21: 0.8802279688 | V21: 0.9008105247 | W21: 0.8985788168 | X21: 0.8908224696 | Y21: 0.9195415945 | Z21: 0.8729
J22: 19 | K22: =Fnc_Survival(K$2,$J22,VLOOKUP(K$2,$A$3:$H$8,6,FALSE),VLOOKUP(K$2,$A$3:$H$8,7,FALSE),VLOOKUP(K$2,$A$3:$H$8,8,FALSE)) -> 0.7649862675 | L22: =Fnc_Survival(L$2,$J22,VLOOKUP(L$2,$A$3:$H$8,6,FALSE),VLOOKUP(L$2,$A$3:$H$8,7,FALSE),VLOOKUP(L$2,$A$3:$H$8,8,FALSE)) -> 0.7243274967 | M22: =Fnc_Survival(M$2,$J22,VLOOKUP(M$2,$A$3:$H$8,6,FALSE),VLOOKUP(M$2,$A$3:$H$8,7,FALSE),VLOOKUP(M$2,$A$3:$H$8,8,FALSE)) -> 0.7512233309 | N22: =Fnc_Survival(N$2,$J22,VLOOKUP(N$2,$A$3:$H$8,6,FALSE),VLOOKUP(N$2,$A$3:$H$8,7,FALSE),VLOOKUP(N$2,$A$3:$H$8,8,FALSE)) -> 0.7506645683 | O22: =Fnc_Survival(O$2,$J22,VLOOKUP(O$2,$A$3:$H$8,6,FALSE),VLOOKUP(O$2,$A$3:$H$8,7,FALSE),VLOOKUP(O$2,$A$3:$H$8,8,FALSE)) -> 0.7091761839 | P22: =Fnc_Survival(P$2,$J22,VLOOKUP(P$2,$A$3:$H$8,6,FALSE),VLOOKUP(P$2,$A$3:$H$8,7,FALSE),VLOOKUP(P$2,$A$3:$H$8,8,FALSE)) -> 0.7855959975 | Q22: 0.6803 | S22: 19 | T22: 0.8990711261 | U22: 0.8761676294 | V22: 0.8967831506 | W22: 0.8944517849 | X22: 0.8868015261 | Y22: 0.9152664993 | Z22: 0.8729
J23: 20 | K23: =Fnc_Survival(K$2,$J23,VLOOKUP(K$2,$A$3:$H$8,6,FALSE),VLOOKUP(K$2,$A$3:$H$8,7,FALSE),VLOOKUP(K$2,$A$3:$H$8,8,FALSE)) -> 0.7558535208 | L23: =Fnc_Survival(L$2,$J23,VLOOKUP(L$2,$A$3:$H$8,6,FALSE),VLOOKUP(L$2,$A$3:$H$8,7,FALSE),VLOOKUP(L$2,$A$3:$H$8,8,FALSE)) -> 0.7154068327 | M23: =Fnc_Survival(M$2,$J23,VLOOKUP(M$2,$A$3:$H$8,6,FALSE),VLOOKUP(M$2,$A$3:$H$8,7,FALSE),VLOOKUP(M$2,$A$3:$H$8,8,FALSE)) -> 0.7413819339 | N23: =Fnc_Survival(N$2,$J23,VLOOKUP(N$2,$A$3:$H$8,6,FALSE),VLOOKUP(N$2,$A$3:$H$8,7,FALSE),VLOOKUP(N$2,$A$3:$H$8,8,FALSE)) -> 0.7407764752 | O23: =Fnc_Survival(O$2,$J23,VLOOKUP(O$2,$A$3:$H$8,6,FALSE),VLOOKUP(O$2,$A$3:$H$8,7,FALSE),VLOOKUP(O$2,$A$3:$H$8,8,FALSE)) -> 0.7008296461 | P23: =Fnc_Survival(P$2,$J23,VLOOKUP(P$2,$A$3:$H$8,6,FALSE),VLOOKUP(P$2,$A$3:$H$8,7,FALSE),VLOOKUP(P$2,$A$3:$H$8,8,FALSE)) -> 0.7756815003 | Q23: 0.6803 | S23: 20 | T23: 0.8952461271 | U23: 0.8722935384 | V23: 0.8928293237 | W23: 0.8904254955 | X23: 0.8829253433 | Y23: 0.9110112798 | Z23: 0.8729
J24: 21 | K24: =Fnc_Survival(K$2,$J24,VLOOKUP(K$2,$A$3:$H$8,6,FALSE),VLOOKUP(K$2,$A$3:$H$8,7,FALSE),VLOOKUP(K$2,$A$3:$H$8,8,FALSE)) -> 0.7468946313 | L24: =Fnc_Survival(L$2,$J24,VLOOKUP(L$2,$A$3:$H$8,6,FALSE),VLOOKUP(L$2,$A$3:$H$8,7,FALSE),VLOOKUP(L$2,$A$3:$H$8,8,FALSE)) -> 0.7068557781 | M24: =Fnc_Survival(M$2,$J24,VLOOKUP(M$2,$A$3:$H$8,6,FALSE),VLOOKUP(M$2,$A$3:$H$8,7,FALSE),VLOOKUP(M$2,$A$3:$H$8,8,FALSE)) -> 0.7317886827 | N24: =Fnc_Survival(N$2,$J24,VLOOKUP(N$2,$A$3:$H$8,6,FALSE),VLOOKUP(N$2,$A$3:$H$8,7,FALSE),VLOOKUP(N$2,$A$3:$H$8,8,FALSE)) -> 0.7311862753 | O24: =Fnc_Survival(O$2,$J24,VLOOKUP(O$2,$A$3:$H$8,6,FALSE),VLOOKUP(O$2,$A$3:$H$8,7,FALSE),VLOOKUP(O$2,$A$3:$H$8,8,FALSE)) -> 0.6929570316 | P24: =Fnc_Survival(P$2,$J24,VLOOKUP(P$2,$A$3:$H$8,6,FALSE),VLOOKUP(P$2,$A$3:$H$8,7,FALSE),VLOOKUP(P$2,$A$3:$H$8,8,FALSE)) -> 0.7658921275 | Q24: 0.6803 | S24: 21 | T24: 0.8914816308 | U24: 0.8685964575 | V24: 0.8889453781 | W24: 0.8864944467 | X24: 0.8791839428 | Y24: 0.9067758435 | Z24: 0.8591
J25: 22 | K25: =Fnc_Survival(K$2,$J25,VLOOKUP(K$2,$A$3:$H$8,6,FALSE),VLOOKUP(K$2,$A$3:$H$8,7,FALSE),VLOOKUP(K$2,$A$3:$H$8,8,FALSE)) -> 0.7381025084 | L25: =Fnc_Survival(L$2,$J25,VLOOKUP(L$2,$A$3:$H$8,6,FALSE),VLOOKUP(L$2,$A$3:$H$8,7,FALSE),VLOOKUP(L$2,$A$3:$H$8,8,FALSE)) -> 0.6986560505 | M25: =Fnc_Survival(M$2,$J25,VLOOKUP(M$2,$A$3:$H$8,6,FALSE),VLOOKUP(M$2,$A$3:$H$8,7,FALSE),VLOOKUP(M$2,$A$3:$H$8,8,FALSE)) -> 0.7224346072 | N25: =Fnc_Survival(N$2,$J25,VLOOKUP(N$2,$A$3:$H$8,6,FALSE),VLOOKUP(N$2,$A$3:$H$8,7,FALSE),VLOOKUP(N$2,$A$3:$H$8,8,FALSE)) -> 0.7218792583 | O25: =Fnc_Survival(O$2,$J25,VLOOKUP(O$2,$A$3:$H$8,6,FALSE),VLOOKUP(O$2,$A$3:$H$8,7,FALSE),VLOOKUP(O$2,$A$3:$H$8,8,FALSE)) -> 0.6855129491 | P25: =Fnc_Survival(P$2,$J25,VLOOKUP(P$2,$A$3:$H$8,6,FALSE),VLOOKUP(P$2,$A$3:$H$8,7,FALSE),VLOOKUP(P$2,$A$3:$H$8,8,FALSE)) -> 0.7562263 | Q25: 0.6803 | S25: 22 | T25: 0.887774434 | U25: 0.8650676628 | V25: 0.8851279925 | W25: 0.8826536132 | X25: 0.8755683364 | Y25: 0.9025600984 | Z25: 0.8591
J26: 23 | K26: =Fnc_Survival(K$2,$J26,VLOOKUP(K$2,$A$3:$H$8,6,FALSE),VLOOKUP(K$2,$A$3:$H$8,7,FALSE),VLOOKUP(K$2,$A$3:$H$8,8,FALSE)) -> 0.7294706461 | L26: =Fnc_Survival(L$2,$J26,VLOOKUP(L$2,$A$3:$H$8,6,FALSE),VLOOKUP(L$2,$A$3:$H$8,7,FALSE),VLOOKUP(L$2,$A$3:$H$8,8,FALSE)) -> 0.6907904519 | M26: =Fnc_Survival(M$2,$J26,VLOOKUP(M$2,$A$3:$H$8,6,FALSE),VLOOKUP(M$2,$A$3:$H$8,7,FALSE),VLOOKUP(M$2,$A$3:$H$8,8,FALSE)) -> 0.7133111377 | N26: =Fnc_Survival(N$2,$J26,VLOOKUP(N$2,$A$3:$H$8,6,FALSE),VLOOKUP(N$2,$A$3:$H$8,7,FALSE),VLOOKUP(N$2,$A$3:$H$8,8,FALSE)) -> 0.7128416611 | O26: =Fnc_Survival(O$2,$J26,VLOOKUP(O$2,$A$3:$H$8,6,FALSE),VLOOKUP(O$2,$A$3:$H$8,7,FALSE),VLOOKUP(O$2,$A$3:$H$8,8,FALSE)) -> 0.6784578861 | P26: =Fnc_Survival(P$2,$J26,VLOOKUP(P$2,$A$3:$H$8,6,FALSE),VLOOKUP(P$2,$A$3:$H$8,7,FALSE),VLOOKUP(P$2,$A$3:$H$8,8,FALSE)) -> 0.7466824587 | Q26: 0.6531 | S26: 23 | T26: 0.884121647 | U26: 0.8616989121 | V26: 0.8813741431 | W26: 0.8788983911 | X26: 0.8720704011 | Y26: 0.8983639529 | Z26: 0.8591
J27: 24 | K27: =Fnc_Survival(K$2,$J27,VLOOKUP(K$2,$A$3:$H$8,6,FALSE),VLOOKUP(K$2,$A$3:$H$8,7,FALSE),VLOOKUP(K$2,$A$3:$H$8,8,FALSE)) -> 0.7209930484 | L27: =Fnc_Survival(L$2,$J27,VLOOKUP(L$2,$A$3:$H$8,6,FALSE),VLOOKUP(L$2,$A$3:$H$8,7,FALSE),VLOOKUP(L$2,$A$3:$H$8,8,FALSE)) -> 0.6832427942 | M27: =Fnc_Survival(M$2,$J27,VLOOKUP(M$2,$A$3:$H$8,6,FALSE),VLOOKUP(M$2,$A$3:$H$8,7,FALSE),VLOOKUP(M$2,$A$3:$H$8,8,FALSE)) -> 0.704410086 | N27: =Fnc_Survival(N$2,$J27,VLOOKUP(N$2,$A$3:$H$8,6,FALSE),VLOOKUP(N$2,$A$3:$H$8,7,FALSE),VLOOKUP(N$2,$A$3:$H$8,8,FALSE)) -> 0.7040606072 | O27: =Fnc_Survival(O$2,$J27,VLOOKUP(O$2,$A$3:$H$8,6,FALSE),VLOOKUP(O$2,$A$3:$H$8,7,FALSE),VLOOKUP(O$2,$A$3:$H$8,8,FALSE)) -> 0.6717572779 | P27: =Fnc_Survival(P$2,$J27,VLOOKUP(P$2,$A$3:$H$8,6,FALSE),VLOOKUP(P$2,$A$3:$H$8,7,FALSE),VLOOKUP(P$2,$A$3:$H$8,8,FALSE)) -> 0.737259064 | Q27: 0.6531 | S27: 24 | T27: 0.8805206499 | U27: 0.8584824142 | V27: 0.8776810639 | W27: 0.8752245494 | X27: 0.8686827737 | Y27: 0.894187316 | Z27: 0.8591
J28: 25 | K28: =Fnc_Survival(K$2,$J28,VLOOKUP(K$2,$A$3:$H$8,6,FALSE),VLOOKUP(K$2,$A$3:$H$8,7,FALSE),VLOOKUP(K$2,$A$3:$H$8,8,FALSE)) -> 0.7126641677 | L28: =Fnc_Survival(L$2,$J28,VLOOKUP(L$2,$A$3:$H$8,6,FALSE),VLOOKUP(L$2,$A$3:$H$8,7,FALSE),VLOOKUP(L$2,$A$3:$H$8,8,FALSE)) -> 0.6759978293 | M28: =Fnc_Survival(M$2,$J28,VLOOKUP(M$2,$A$3:$H$8,6,FALSE),VLOOKUP(M$2,$A$3:$H$8,7,FALSE),VLOOKUP(M$2,$A$3:$H$8,8,FALSE)) -> 0.6957236276 | N28: =Fnc_Survival(N$2,$J28,VLOOKUP(N$2,$A$3:$H$8,6,FALSE),VLOOKUP(N$2,$A$3:$H$8,7,FALSE),VLOOKUP(N$2,$A$3:$H$8,8,FALSE)) -> 0.6955240461 | O28: =Fnc_Survival(O$2,$J28,VLOOKUP(O$2,$A$3:$H$8,6,FALSE),VLOOKUP(O$2,$A$3:$H$8,7,FALSE),VLOOKUP(O$2,$A$3:$H$8,8,FALSE)) -> 0.6653807466 | P28: =Fnc_Survival(P$2,$J28,VLOOKUP(P$2,$A$3:$H$8,6,FALSE),VLOOKUP(P$2,$A$3:$H$8,7,FALSE),VLOOKUP(P$2,$A$3:$H$8,8,FALSE)) -> 0.7279545958 | Q28: 0.6531 | S28: 25 | T28: 0.8769690573 | U28: 0.8554108005 | V28: 0.874046215 | W28: 0.8716281891 | X28: 0.8653987601 | Y28: 0.890030097 | Z28: 0.8591
J29: 26 | K29: =Fnc_Survival(K$2,$J29,VLOOKUP(K$2,$A$3:$H$8,6,FALSE),VLOOKUP(K$2,$A$3:$H$8,7,FALSE),VLOOKUP(K$2,$A$3:$H$8,8,FALSE)) -> 0.704478852 | L29: =Fnc_Survival(L$2,$J29,VLOOKUP(L$2,$A$3:$H$8,6,FALSE),VLOOKUP(L$2,$A$3:$H$8,7,FALSE),VLOOKUP(L$2,$A$3:$H$8,8,FALSE)) -> 0.6690411849 | M29: =Fnc_Survival(M$2,$J29,VLOOKUP(M$2,$A$3:$H$8,6,FALSE),VLOOKUP(M$2,$A$3:$H$8,7,FALSE),VLOOKUP(M$2,$A$3:$H$8,8,FALSE)) -> 0.6872442839 | N29: =Fnc_Survival(N$2,$J29,VLOOKUP(N$2,$A$3:$H$8,6,FALSE),VLOOKUP(N$2,$A$3:$H$8,7,FALSE),VLOOKUP(N$2,$A$3:$H$8,8,FALSE)) -> 0.6872206946 | O29: =Fnc_Survival(O$2,$J29,VLOOKUP(O$2,$A$3:$H$8,6,FALSE),VLOOKUP(O$2,$A$3:$H$8,7,FALSE),VLOOKUP(O$2,$A$3:$H$8,8,FALSE)) -> 0.659301475 | P29: =Fnc_Survival(P$2,$J29,VLOOKUP(P$2,$A$3:$H$8,6,FALSE),VLOOKUP(P$2,$A$3:$H$8,7,FALSE),VLOOKUP(P$2,$A$3:$H$8,8,FALSE)) -> 0.7187675533 | Q29: 0.6531 | S29: 26 | T29: 0.8734646883 | U29: 0.8524770986 | V29: 0.8704672547 | W29: 0.868105708 | X29: 0.8622122568 | Y29: 0.8858922055 | Z29: 0.8591
J30: 27 | K30: =Fnc_Survival(K$2,$J30,VLOOKUP(K$2,$A$3:$H$8,6,FALSE),VLOOKUP(K$2,$A$3:$H$8,7,FALSE),VLOOKUP(K$2,$A$3:$H$8,8,FALSE)) -> 0.6964323018 | L30: =Fnc_Survival(L$2,$J30,VLOOKUP(L$2,$A$3:$H$8,6,FALSE),VLOOKUP(L$2,$A$3:$H$8,7,FALSE),VLOOKUP(L$2,$A$3:$H$8,8,FALSE)) -> 0.6623593062 | M30: =Fnc_Survival(M$2,$J30,VLOOKUP(M$2,$A$3:$H$8,6,FALSE),VLOOKUP(M$2,$A$3:$H$8,7,FALSE),VLOOKUP(M$2,$A$3:$H$8,8,FALSE)) -> 0.6789649056 | N30: =Fnc_Survival(N$2,$J30,VLOOKUP(N$2,$A$3:$H$8,6,FALSE),VLOOKUP(N$2,$A$3:$H$8,7,FALSE),VLOOKUP(N$2,$A$3:$H$8,8,FALSE)) -> 0.6791399809 | O30: =Fnc_Survival(O$2,$J30,VLOOKUP(O$2,$A$3:$H$8,6,FALSE),VLOOKUP(O$2,$A$3:$H$8,7,FALSE),VLOOKUP(O$2,$A$3:$H$8,8,FALSE)) -> 0.6534956904 | P30: =Fnc_Survival(P$2,$J30,VLOOKUP(P$2,$A$3:$H$8,6,FALSE),VLOOKUP(P$2,$A$3:$H$8,7,FALSE),VLOOKUP(P$2,$A$3:$H$8,8,FALSE)) -> 0.7096964545 | Q30: 0.6531 | S30: 27 | T30: 0.8700055416 | U30: 0.8496747078 | V30: 0.8669420174 | W30: 0.86465377 | X30: 0.8591176847 | Y30: 0.8817735517 | Z30: 0.8591
J31: 28 | K31: =Fnc_Survival(K$2,$J31,VLOOKUP(K$2,$A$3:$H$8,6,FALSE),VLOOKUP(K$2,$A$3:$H$8,7,FALSE),VLOOKUP(K$2,$A$3:$H$8,8,FALSE)) -> 0.6885200315 | L31: 0.6559394004 | M31: 0.6708786558 | N31: 0.6712719924 | O31: 0.6479422349 | P31: 0.7007398362 | Q31: 0.6531 | S31: 28 | T31: 0.8665897747 | U31: 0.8469973765 | V31: 0.8634684934 | W31: 0.861269278 | X31: 0.8561099303 | Y31: 0.8776740463 | Z31: 0.844
J32: 29 | K32: 0.6807378376 | L32: 0.6497693872 | M32: 0.662978995 | N32: 0.6636074262 | O32: 0.6426222077 | P32: 0.6918962535 | Q32: 0.6531 | S32: 29 | T32: 0.8632156855 | U32: 0.8444391812 | V32: 0.8600448125 | W32: 0.8579493506 | X32: 0.8531842961 | Y32: 0.8735936 | Z32: 0.8286
J33: 30 | K33: 0.6730817708 | L33: 0.6438378518 | M33: 0.6552596661 | N33: 0.6561375441 | O33: 0.6375186639 | P33: 0.68316428 | Q33: 0.6531 | S33: 30 | T33: 0.8598816975 | U33: 0.8419945068 | V33: 0.8566692297 | W33: 0.8546913018 | X33: 0.8503364565 | Y33: 0.8695321244 | Z33: 0.8286
J34: 31 | K34: 0.6655481117 | L34: 0.6381340019 | M34: 0.6477146801 | N34: 0.6488541308 | O34: 0.6326163617 | P34: 0.674542507 | Q34: 0.6531 | S34: 31 | T34: 0.8565863459 | U34: 0.8396580282 | V34: 0.8533401125 | W34: 0.851492623 | X34: 0.8475624195 | Y34: 0.8654895313 | Z34: 0.8124
J35: 32 | K35: 0.6581333495 | L35: 0.6326476276 | M35: 0.640338303 | N35: 0.6417494552 | O35: 0.6279015477 | P35: 0.6660295438 | Q35: 0.6531 | S35: 32 | T35: 0.853328267 | U35: 0.8374246935 | V35: 0.8500559306 | W35: 0.8483509664 | X35: 0.8448584937 | Y35: 0.8614657328 | Z35: 0.8124
J36: 33 | K36: 0.6508341639 | L36: 0.6273690647 | M36: 0.6331250429 | N36: 0.634816235 | O36: 0.6233617743 | P36: 0.6576240172 | Q36: 0.622 | S36: 33 | T36: 0.8501061875 | U36: 0.8352897082 | V36: 0.8468152457 | W36: 0.8452641318 | X36: 0.8422212585 | Y36: 0.8574606416 | Z36: 0.8124
J37: 34 | K37: 0.6436474084 | L37: 0.6222891604 | M37: 0.6260696379 | N37: 0.6280476039 | O37: 0.6189857439 | P37: 0.6493245713 | Q37: 0.622 | S37: 34 | T37: 0.8469189162 | U37: 0.8332485202 | V37: 0.8436167038 | W37: 0.8422300532 | X37: 0.8396475385 | Y37: 0.8534741707 | Z37: 0.8124
J38: 35 | K38: 0.6365700958 | L38: 0.6173992411 | M38: 0.6191670449 | N38: 0.6214370823 | O38: 0.6147631746 | P38: 0.6411298673 | Q38: 0.622 | S38: 35 | T38: 0.8437653364 | U38: 0.8312968058 | V38: 0.8404590278 | W38: 0.8392467877 | X38: 0.8371343805 | Y38: 0.8495062335 | Z38: 0.8124
J39: 36 | K39: 0.6295993859 | L39: 0.6126910832 | M39: 0.6124124286 | N39: 0.6149785494 | O39: 0.6106846856 | P39: 0.6330385833 | Q39: 0.622 | S39: 36 | T39: 0.8406443989 | U39: 0.8294304574 | V39: 0.8373410106 | W39: 0.8363125059 | X39: 0.8346790331 | Y39: 0.845556744 | Z39: 0.8124
J40: 37 | K40: 0.6227325735 | L40: 0.6081568853 | M40: 0.6058011513 | N40: 0.6086662181 | O40: 0.606741697 | P40: 0.6250494142 | Q40: 0.622 | S40: 37 | T40: 0.8375551166 | U40: 0.8276455708 | V40: 0.8342615097 | W40: 0.8334254825 | X40: 0.832278929 | Y40: 0.8416256162 | Z40: 0.8124
J41: 38 | K41: 0.6159670784 | L41: 0.6037892432 | M41: 0.5993287636 | N41: 0.6024946121 | O41: 0.6029263435 | P41: 0.6171610712 | Q41: 0.5565 | S41: 38 | T41: 0.8344965587 | U41: 0.8259384345 | V41: 0.8312194422 | W41: 0.8305840882 | X41: 0.8299316685 | Y41: 0.8377127648 | Z41: 0.8124
J42: 39 | K42: 0.6093004363 | L42: 0.5995811253 | M42: 0.5929909946 | N42: 0.5964585444 | O42: 0.5992313989 | P42: 0.6093722819 | Q42: 0.5565 | S42: 39 | T42: 0.8314678461 | U42: 0.8243055185 | V42: 0.8282137796 | W42: 0.8277867823 | X42: 0.8276350056 | Y42: 0.8338181049 | Z42: 0.8124
J43: 40 | K43: 0.6027302906 | L43: 0.5955258514 | M43: 0.5867837439 | N43: 0.590553098 | O43: 0.5956502105 | P43: 0.6016817898 | Q43: 0.5565 | S43: 40 | T43: 0.8284681477 | U43: 0.8227434647 | V43: 0.8252435443 | W43: 0.8250321065 | X43: 0.8253868349 | Y43: 0.829941552 | Z43: 0.8124
J44: 41 | K44: 0.5962543844 | L44: 0.5916170711 | M44: 0.5807030732 | N44: 0.5847736078 | O44: 0.592176641 | P44: 0.5940883545 | Q44: 0.5565 | S44: 41 | T44: 0.8254966758 | U44: 0.8212490777 | V44: 0.8223078056 | W44: 0.8223186785 | X44: 0.82318518 | Y44: 0.8260830217 | Z44: 0.8124
J45: 42 | K45: 0.5898705547 | L45: 0.5878487454 | M45: 0.5747451984 | N45: 0.5791156441 | O45: 0.5888050181 | P45: 0.5865907509 | Q45: 0.5565 | S45: 42 | T45: 0.8225526838 | U45: 0.8198193159 | V45: 0.8194056761 | W45: 0.8196451866 | X45: 0.8210281835 | Y45: 0.8222424303 | Z45: 0.8124
J46: 43 | K46: 0.5835767252 | L46: 0.5842151282 | M46: 0.5689064825 | N46: 0.5735749976 | O46: 0.5855300897 | P46: 0.5791877698 | Q46: 0.5565 | S46: 43 | T46: 0.819635462 | U46: 0.8184512834 | V46: 0.8165363093 | W46: 0.8170103851 | X46: 0.8189140971 | Y46: 0.8184196945 | Z46: 0.8124
J47: 44 | K47: 0.5773709017 | L47: 0.5807107497 | M47: 0.5631834285 | N47: 0.5681476649 | O47: 0.5823469841 | P47: 0.5718782168 | Q47: 0.5565 | S47: 44 | T47: 0.8167443359 | U47: 0.8171422224 | V47: 0.8136988961 | W47: 0.8144130893 | X47: 0.8168412737 | Y47: 0.8146147312 | Z47: 0.8124
J48: 45 | K48: 0.5712511663 | L48: 0.5773304009 | M48: 0.5575726733 | N48: 0.5628298357 | O48: 0.5792511751 | P48: 0.564660913 | Q48: 0.5565 | S48: 45 | T48: 0.813878663 | U48: 0.8158895056 | V48: 0.810892663 | W48: 0.8118521717 | X48: 0.8148081593 | Y48: 0.8108274577 | Z48: 0.8124
J49: 46 | K49: 0.5652156731 | L49: 0.5740691187 | M49: 0.5520709808 | N49: 0.557617881 | O49: 0.5762384507 | P49: 0.5575346941 | Q49: 0.5565 | S49: 46 | T49: 0.8110378309 | U49: 0.8146906298 | V49: 0.8081168691 | W49: 0.8093265581 | X49: 0.8128132865 | Y49: 0.8070577919 | Z49: 0.8124
J50: 47 | K50: 0.5592626437 | L50: 0.5709221725 | M50: 0.5466752368 | N50: 0.5525083419 | O50: 0.5733048853 | P50: 0.5504984106 | Q50: 0.5565 | S50: 47 | T50: 0.8082212551 | U50: 0.8135432093 | V50: 0.8053708047 | W50: 0.8068352244 | X50: 0.8108552678 | Y50: 0.8033056519 | Z50: 0.8124
J51: 48 | K51: 0.5533903638 | L51: 0.5678850511 | M51: 0.5413824429 | N51: 0.5474979191 | O51: 0.5704468148 | P51: 0.5435509274 | Q51: 0.5565 | S51: 48 | T51: 0.8054283774 | U51: 0.8124449701 | V51: 0.8026537888 | W51: 0.804377193 | X51: 0.8089327901 | Y51: 0.7995709561 | Z51: 0.8124
J52: 49 | K52: 0.5475971787 | L52: 0.564953451 | M52: 0.5361897113 | N52: 0.5425834637 | O52: 0.5676608147 | P52: 0.536691124 | Q52: 0.5565 | S52: 49 | T52: 0.8026586637 | U52: 0.8113937438 | V52: 0.7999651678 | W52: 0.8019515301 | X52: 0.8070446093 | Y52: 0.7958536236 | Z52: 0.8124
J53: 50 | K53: 0.5418814908 | L53: 0.5621232648 | M53: 0.5310942602 | N53: 0.5377619681 | O53: 0.5649436795 | P53: 0.5299178936 | Q53: 0.5565 | S53: 50 | T53: 0.7999116029 | U53: 0.8103874626 | V53: 0.7973043135 | W53: 0.7995573432 | X53: 0.8051895457 | Y53: 0.7921535735 | Z53: 0.8124
J54: 51 | K54: 0.5362417563 | L54: 0.5593905712 | M54: 0.5260934087 | N54: 0.5330305582 | O54: 0.5622924053 | P54: 0.5232301438 | Q54: 0.5565 | S54: 51 | T54: 0.7971867052 | U54: 0.8094241542 | V54: 0.794670622 | W54: 0.7971937782 | X54: 0.8033664795 | Y54: 0.7884707256 | Z54: 0.8124
J55: 52 | K55: 0.5306764821 | L55: 0.5567516245 | M55: 0.5211845725 | N55: 0.5283864852 | O55: 0.5597041734 | P55: 0.5166267957 | Q55: 0.5565 | S55: 52 | T55: 0.794483501 | U55: 0.8085019369 | V55: 0.7920635119 | W55: 0.7948600177 | X55: 0.801574347 | Y55: 0.7848049998 | Z55: 0.8124
J56: 53 | K56: 0.5251842234 | L56: 0.5542028457 | M56: 0.5163652594 | N56: 0.523827119 | O56: 0.5571763356 | P56: 0.5101067842 | Q56: 0.5565 | S56: 53 | T56: 0.7918015395 | U56: 0.8076190151 | V56: 0.7894824233 | W56: 0.7925552782 | X56: 0.7998121366 | Y56: 0.7811563165 | Z56: 0.8124
J57: 54 | K57: 0.5197635813 | L57: 0.5517408139 | M57: 0.5116330657 | N57: 0.5193499412 | O57: 0.5547064013 | P57: 0.5036690576 | Q57: 0.5565 | S57: 54 | T57: 0.7891403877 | U57: 0.8067736753 | V57: 0.7869268168 | W57: 0.7902788086 | X57: 0.7980788856 | Y57: 0.7775245965 | Z57: 0.8124
J58: 55 | K58: 0.5144132002 | L58: 0.5493622578 | M58: 0.5069856722 | N58: 0.5149525392 | O58: 0.552292025 | P58: 0.4973125773 | Q58: 0.5565 | S58: 55 | T58: 0.7864996292 | U58: 0.8059642819 | V58: 0.7843961719 | W58: 0.7880298884 | X58: 0.7963736771 | Y58: 0.773909761 | Z58: 0.8124
J59: 56 | K59: 0.5091317663 | L59: 0.547064048 | M59: 0.5024208401 | N59: 0.5106326007 | O59: 0.549930996 | P59: 0.491036318 | Q59: 0.5565 | S59: 56 | T59: =Fnc_Survival(T$2,$J59,VLOOKUP(T$2,$A$12:$H$18,6,FALSE),VLOOKUP(T$2,$A$12:$H$18,7,FALSE),VLOOKUP(T$2,$A$12:$H$18,8,FALSE)) -> 0.7838788636 | U59: 0.8051892732 | V59: 0.7818899864 | W59: 0.7858078255 | X59: 0.7946956372 | Y59: 0.7703117315 | Z59: 0.8124
J60: 57 | K60: 0.503918005 | L60: 0.5448431904 | M60: 0.4979364085 | N60: 0.5063879075 | O60: 0.5476212281 | P60: 0.4848392674 | S60: 57 | T60: 0.7812777053 | U60: 0.8044471583 | V60: 0.7794077755 | W60: 0.7836119554 | X60: 0.7930439322 | Y60: 0.7667304297
J61: 58 | K61: 0.4987706793 | L61: 0.5426968184 | M61: 0.4935302903 | N61: 0.5022163316 | O61: 0.5453607508 | P61: 0.4787204256 | S61: 58 | T61: 0.7786957826 | U61: 0.8037365131 | V61: 0.7769490704 | W61: 0.7814416392 | X61: 0.7914177661 | Y61: 0.763165778
J62: 59 | K62: 0.493688588 | L62: 0.5406221873 | M62: 0.4892004694 | N62: 0.4981158294 | O62: 0.5431477009 | P62: 0.4726788058 | S62: 59 | T62: 0.7761327374 | U62: 0.8030559778 | V62: 0.7745134182 | W62: 0.7792962622 | X62: 0.7898163787 | Y62: 0.7596176989
J63: 60 | K63: 0.4886705646 | L63: 0.5386166679 | M63: 0.4849449977 | N63: 0.4940844381 | O63: 0.5409803154 | P63: 0.4667134334 | S63: 60 | T63: 0.7735882241 | U63: 0.802404253 | V63: 0.7721003806 | W63: 0.777175233 | X63: 0.7882390432 | Y63: 0.7560861154
J64: 61 | K64: 0.4837154748 | L64: 0.536677741 | M64: 0.4807619924 | N64: 0.4901202715 | O64: 0.5388569239 | P64: 0.4608233461 | S64: 61 | T64: 0.7710619091 | U64: 0.8017800977 | V64: 0.7697095333 | W64: 0.7750779822 | X64: 0.7866850641 | Y64: 0.7525709508
J65: 62 | K65: 0.4788222159 | L65: 0.5348029918 | M65: 0.4766496333 | N65: 0.4862215156 | O65: 0.536775943 | P65: 0.4550075937 | S65: 62 | T65: 0.7685534699 | U65: 0.8011823258 | V65: 0.7673404657 | W65: 0.7730039608 | X65: 0.785153776 | Y65: 0.7490721288
J66: 63 | K66: 0.4739897154 | L66: 0.532990105 | M66: 0.4726061598 | N66: 0.4823864257 | O66: 0.5347358701 | P66: 0.4492652382 | S66: 63 | T66: 0.7660625953 | U66: 0.8006098039 | V66: 0.7649927797 | W66: 0.77095264 | X66: 0.7836445414 | Y66: 0.7455895733
J67: 64 | K67: 0.4692169291 | L67: 0.5312368601 | M67: 0.4686298694 | N67: 0.4786133225 | O67: 0.5327352783 | P67: 0.4435953532 | S67: 64 | T67: 0.7635889838 | U67: 0.8000614489 | V67: 0.7626660896 | W67: 0.7689235097 | X67: 0.7821567491 | Y67: 0.7421232088
J68: 65 | K68: 0.4645028409 | L68: 0.5295411266 | M68: 0.4647191144 | N68: 0.4749005891 | O68: 0.5307728114 | P68: 0.4379970241 | S68: 65 | T68: 0.761132344 | U68: 0.7995362254 | V68: 0.7603600212 | W68: 0.7669160774 | X68: 0.7806898132 | Y68: 0.73867296
J69: 66 | K69: 0.4598464606 | L69: 0.5279008602 | M69: 0.4608723002 | N69: 0.471246668 | O69: 0.5288471794 | P69: 0.432469348 | S69: 66 | T69: 0.7586923936 | U69: 0.7990331435 | V69: 0.7580742114 | W69: 0.7649298681 | X69: 0.7792431714 | Y69: 0.7352387519
J70: 67 | K70: 0.4552468239 | L70: 0.5263140982 | M70: 0.4570878834 | N70: 0.4676500582 | O70: 0.5269571543 | P70: 0.427011433 | S70: 67 | T70: 0.7562688593 | U70: 0.798551257 | V70: 0.7558083079 | W70: 0.7629644225 | X70: 0.7778162838 | Y70: 0.73182051
J71: 68 | K71: 0.4507029905 | L71: 0.5247789564 | M71: 0.4533643693 | N71: 0.4641093127 | O71: 0.5251015665 | P71: 0.4216223989 | S71: 68 | T71: 0.753861476 | U71: 0.7980896611 | V71: 0.7535619686 | W71: 0.7610192971 | X71: 0.7764086318 | Y71: 0.7284181601
J72: 69 | K72: 0.446214044 | L72: 0.5232936246 | M72: 0.4497003103 | N72: 0.4606230357 | O72: 0.5232793009 | P72: 0.4163013762 | S72: 69 | T72: 0.751469987 | U72: 0.7976474905 | V72: 0.751334861 | W72: 0.7590940632 | X72: 0.7750197169 | Y72: 0.7250316282
J73: 70 | K73: 0.4417790901 | L73: 0.5218563641 | M73: 0.4460943039 | N73: =Fnc_Survival(N$2,$J73,VLOOKUP(N$2,$A$3:$H$8,6,FALSE),VLOOKUP(N$2,$A$3:$H$8,7,FALSE),VLOOKUP(N$2,$A$3:$H$8,8,FALSE)) -> 0.4571898807 | O73: 0.5214892939 | P73: 0.4110475067 | S73: 70 | T73: 0.7490941429 | U73: 0.7972239179 | V73: 0.749126662 | W73: 0.7571883059 | X73: 0.7736490597 | Y73: 0.7216608408
J74: 71 | K74: =Fnc_Survival(K$2,$J74,VLOOKUP(K$2,$A$3:$H$8,6,FALSE),VLOOKUP(K$2,$A$3:$H$8,7,FALSE),VLOOKUP(K$2,$A$3:$H$8,8,FALSE)) -> 0.4373972567 | L74: 0.520465504 | M74: 0.4425449912 | N74: 0.4538085478 | O74: 0.51973053 | P74: 0.4058599429 | S74: 71 | T74: 0.7467337018 | U74: 0.7968181519 | V74: 0.7469370575 | W74: 0.7553016241 | X74: 0.7722961991 | Y74: 0.7183057248
J75: 72 | K75: 0.4330676923 | L75: 0.519119438 | M75: 0.4390510552 | N75: 0.4504777817 | O75: 0.5180020395 | P75: 0.400737848 | S75: 72 | T75: 0.744388429 | U75: 0.7964294353 | V75: 0.7447657421 | W75: 0.7534336291 | X75: 0.770960691 | Y75: 0.7149662072
J76: 73 | K76: 0.4287895658 | L76: 0.517816622 | M76: 0.4356112188 | N76: 0.4471963701 | O76: 0.5163028953 | P76: 0.3956803957 | S76: 73 | T76: 0.7420580963 | U76: 0.7960570443 | V76: 0.7426124184 | W76: 0.7515839451 | X76: 0.7696421078 | Y76: 0.7116422156
J77: 74 | K77: 0.4245620655 | L77: 0.5165555708 | M77: 0.432224244 | N77: 0.4439631413 | O77: 0.514632211 | P77: 0.3906867702 | S77: 74 | T77: 0.7397424819 | U77: 0.795700286 | V77: 0.7404767972 | W77: 0.7497522074 | X77: 0.7683400376 | Y77: 0.7083336778
J78: 75 | K78: 0.4203843985 | L78: 0.5153348561 | M78: 0.4288889297 | N78: 0.4407769627 | O78: 0.5129891382 | P78: 0.3857561661 | S78: 75 | T78: 0.7374413703 | U78: 0.7953584977 | V78: 0.7383585967 | W78: 0.7479380632 | X78: 0.7670540831 | Y78: 0.7050405219
J79: 76 | K79: 0.4162557901 | L79: 0.5141531033 | M79: 0.425604111 | N79: 0.437636739 | O79: 0.5113728644 | P79: 0.3808877879 | S79: 76 | T79: 0.7351545519 | U79: 0.7950310453 | V79: 0.7362575426 | W79: 0.7461411699 | X79: 0.7657838614 | Y79: 0.7017626763
J80: 77 | K80: 0.4121754829 | L80: 0.5130089899 | M80: 0.4223686573 | N80: 0.4345414108 | O80: 0.5097826114 | P80: 0.3760808503 | S80: 77 | T80: 0.7328818227 | U80: 0.7947173219 | V80: 0.7341733676 | W80: 0.7443611957 | X80: 0.7645290028 | Y80: 0.69850007
J81: 78 | K81: 0.4081427366 | L81: 0.5119012426 | M81: 0.4191814716 | N81: 0.4314899527 | O81: 0.5082176333 | P81: 0.371334578 | S81: 78 | T81: 0.7306229842 | U81: 0.7944167469 | V81: 0.7321058111 | W81: 0.7425978185 | X81: 0.7632891507 | Y81: 0.6952526321
J82: 79 | K82: 0.4041568274 | L82: 0.5108286358 | M82: 0.4160414886 | N82: 0.4284813725 | O82: 0.5066772143 | P82: 0.3666482053 | S82: 79 | T82: 0.728377843 | U82: 0.7941287647 | V82: 0.7300546192 | W82: 0.7408507257 | X82: 0.7620639606 | Y82: 0.6920202921
J83: 80 | K83: 0.4002170471 | L83: 0.5097899892 | M83: 0.4129476743 | N83: 0.4255147091 | O83: 0.505160668 | P83: 0.3620209762 | S83: 80 | T83: 0.726146211 | U83: 0.7938528434 | V83: 0.7280195442 | W83: 0.7391196139 | X83: 0.7608530998 | Y83: 0.6888029797
J84: 81 | K84: 0.3963227028 | L84: 0.5087841658 | M84: 0.4098990242 | N84: 0.4225890317 | O84: 0.5036673349 | P84: 0.3574521444 | S84: 81 | T84: 0.7239279046 | U84: 0.793588474 | V84: 0.7260003446 | W84: 0.7374041884 | X84: 0.7596562466 | Y84: 0.6856006251
J85: 82 | K85: 0.3924731168 | L85: 0.5078100704 | M85: 0.4068945629 | N85: 0.4197034385 | O85: 0.5021965818 | P85: 0.3529409729 | S85: 82 | T85: 0.721722745 | U85: 0.7933351693 | V85: 0.7239967844 | W85: 0.7357041629 | X85: 0.7584730901 | Y85: 0.6824131587
J86: 83 | K86: 0.3886676253 | L86: 0.5068666479 | M86: 0.4039333425 | N86: 0.4168570555 | O86: 0.5007478 | P86: 0.348486734 | S86: 83 | T86: 0.7195305578 | U86: 0.7930924629 | V86: 0.7220086338 | W86: 0.7340192593 | X86: 0.7573033298 | Y86: 0.6792405114
J87: 84 | K87: 0.3849055787 | L87: 0.5059528811 | M87: 0.4010144419 | N87: 0.4140490352 | O87: 0.4993204044 | P87: 0.3440887091 | S87: 84 | T87: 0.717351173 | U87: 0.7928599083 | V87: 0.7200356679 | W87: 0.7323492072 | X87: 0.7561466745 | Y87: 0.6760826142
J88: 85 | K88: 0.3811863409 | L88: 0.5050677897 | M88: 0.398136966 | N88: 0.4112785558 | O88: 0.497913832 | P88: 0.3397461888 | S88: 85 | T88: 0.7151844248 | U88: 0.7926370782 | V88: 0.7180776676 | W88: 0.7306937437 | X88: 0.7550028429 | Y88: 0.6729393986
J89: 86 | K89: 0.3775092887 | L89: 0.5042104288 | M89: 0.3953000443 | N89: 0.4085448202 | O89: 0.4965275409 | P89: 0.3354584726 | S89: 86 | T89: 0.7130301511 | U89: 0.7924235633 | V89: 0.7161344184 | W89: 0.729052613 | X89: 0.7538715622 | Y89: 0.6698107963
J90: 87 | K90: 0.3738738119 | L90: 0.5033798869 | M90: 0.3925028309 | N90: 0.4058470549 | O90: 0.4951610095 | P90: 0.331224869 | S90: 87 | T90: 0.7108881939 | U90: 0.7922189719 | V90: 0.7142057111 | W90: 0.7274255665 | X90: 0.7527525684 | Y90: 0.6666967394
J91: 88 | K91: 0.3702793123 | L91: 0.5025752853 | M91: 0.3897445026 | N91: 0.4031845092 | O91: 0.4938137353 | P91: 0.3270446949 | S91: 88 | T91: 0.7087583988 | U91: 0.7920229289 | V91: 0.712291341 | W91: 0.725812362 | X91: 0.7516456057 | Y91: 0.6635971602
J92: 89 | K92: 0.3667252038 | L92: 0.5017957762 | M92: 0.3870242591 | N92: 0.4005564542 | O92: 0.492485234 | P92: 0.322917276 | S92: 89 | T92: 0.706640615 | U92: 0.7918350752 | V92: 0.7103911082 | W92: 0.7242127638 | X92: 0.7505504261 | Y92: 0.6605119915
J93: 90 | K93: 0.3632109121 | L93: 0.5010405417 | M93: 0.3843413216 | N93: 0.3979621822 | O93: 0.4911750387 | P93: 0.3188419467 | S93: 90 | T93: 0.7045346953 | U93: 0.7916550669 | V93: 0.7085048172 | W93: 0.7226265424 | X93: 0.7494667892 | Y93: 0.6574411662
J94: 91 | K94: 0.3597358738 | L94: 0.5003087927 | M94: 0.3816949323 | N94: 0.3954010056 | O94: 0.4898826992 | P94: 0.3148180494 | S94: 91 | T94: 0.7024404956 | U94: 0.7914825746 | V94: 0.7066322767 | W94: 0.7210534744 | X94: 0.748394462 | Y94: 0.6543846177
J95: 92 | K95: 0.3562995368 | L95: 0.4995997678 | M95: 0.3790843539 | N95: 0.3928722565 | O95: 0.4886077811 | P95: 0.3108449351 | S95: 92 | T95: 0.7003578752 | U95: 0.791317283 | V95: 0.7047732997 | W95: 0.7194933421 | X95: 0.7473332183 | Y95: 0.6513422795
J96: 93 | K96: 0.3529013595 | L96: 0.4989127318 | M96: 0.3765088683 | N96: 0.3903752856 | O96: 0.487349865 | P96: 0.306921963 | S96: 93 | T96: 0.6982866963 | U96: 0.79115889 | V96: 0.7029277032 | W96: 0.7179459332 | X96: 0.7462828385 | Y96: 0.6483140856
J97: 94 | K97: 0.3495408107 | L97: 0.4982469753 | M97: 0.3739677768 | N97: 0.3879094621 | O97: 0.486108546 | P97: 0.3030485001 | S97: 94 | T97: 0.6962268245 | U97: 0.7910071066 | V97: 0.7010953081 | W97: 0.716411041 | X97: 0.7452431098 | Y97: 0.6452999703
J98: 95 | K98: 0.3462173693 | L98: 0.4976018132 | M98: 0.3714603987 | N98: 0.3854741723 | O98: 0.484883433 | P98: 0.2992239216 | S98: 95 | T98: 0.694178128 | U98: 0.7908616557 | V98: 0.6992759391 | W98: 0.7148884639 | X98: 0.7442138251 | Y98: 0.6422998681
J99: 96 | K99: 0.342930524 | L99: 0.496976584 | M99: 0.3689860714 | N99: 0.3830688196 | O99: 0.483674148 | P99: 0.2954476107 | S99: 96 | T99: 0.6921404778 | U99: 0.790722272 | V99: 0.6974694247 | W99: 0.7133780052 | X99: 0.7431947837 | Y99: 0.6393137139
J100: 97 | K100: 0.339679773 | L100: 0.496370649 | M100: 0.3665441492 | N100: 0.3806928234 | O100: 0.4824803258 | P100: 0.2917189582 | S100: 97 | T100: 0.6901137478 | U100: 0.7905887014 | V100: 0.6956755968 | W100: 0.7118794732 | X100: 0.7421857902 | Y100: 0.6363414428
J101: 98 | K101: 0.336464624 | L101: 0.4957833913 | M101: 0.3641340032 | N101: 0.378345619 | O101: 0.4813016131 | P101: 0.2880373625 | S101: 98 | T101: 0.6880978145 | U101: 0.7904607006 | V101: 0.6938942909 | W101: =Fnc_Survival(W$2,$J101,VLOOKUP(W$2,$A$12:$H$18,6,FALSE),VLOOKUP(W$2,$A$12:$H$18,7,FALSE),VLOOKUP(W$2,$A$12:$H$18,8,FALSE)) -> 0.7103926807 | X101: 0.7411866551 | Y101: 0.6333829902
J102: 99 | K102: 0.3332845935 | L102: 0.4952142147 | M102: 0.3617550204 | N102: 0.3760266568 | O102: 0.4801376681 | P102: 0.2844022299 | S102: 99 | T102: =Fnc_Survival(T$2,$J102,VLOOKUP(T$2,$A$12:$H$18,6,FALSE),VLOOKUP(T$2,$A$12:$H$18,7,FALSE),VLOOKUP(T$2,$A$12:$H$18,8,FALSE)) -> 0.686092557 | U102: 0.7903380364 | V102: 0.6921253457 | W102: 0.7089174453 | X102: 0.740197194 | Y102: 0.6304382919
J103: 100 | K103: 0.3301392069 | L103: 0.4946625436 | M103: 0.3594066037 | N103: 0.3737354017 | O103: 0.4789881602 | P103: 0.280812974 | S103: 100 | T103: 0.6840978567 | U103: 0.7902204857 | V103: 0.6903686034 | W103: 0.7074535887 | X103: 0.7392172275 | Y103: 0.627507284
J104: 101 | K104: 0.3270279982 | L104: 0.4941278215 | M104: 0.3570881708 | N104: 0.3714713329 | O104: 0.4778527693 | P104: 0.2772690157 | S104: 101 | T104: 0.6821135976 | U104: 0.7901078344 | V104: 0.6886239092 | W104: 0.706000937 | X104: 0.7382465812 | Y104: 0.6245899029
J105: 102 | K105: 0.3239505099 | L105: 0.4936095109 | M105: 0.3547991542 | N105: 0.3692339429 | O105: 0.4767311854 | P105: 0.2737697834 | S105: 102 | T105: 0.680139666 | U105: 0.7899998779 | V105: 0.6868911114 | W105: 0.7045593203 | X105: 0.7372850857 | Y105: 0.6216860851
J106: 103 | K106: =Fnc_Survival(K$2,$J106,VLOOKUP(K$2,$A$3:$H$8,6,FALSE),VLOOKUP(K$2,$A$3:$H$8,7,FALSE),VLOOKUP(K$2,$A$3:$H$8,8,FALSE)) -> 0.3209062924 | L106: 0.4931070922 | M106: 0.3525390006 | N106: 0.3670227377 | O106: 0.4756231085 | P106: 0.2703147126 | S106: 103 | T106: 0.6781759503 | U106: 0.7898964197 | V106: 0.6851700614 | W106: 0.7031285726 | X106: 0.7363325757 | Y106: 0.6187957676
J107: 104 | K107: 0.3178949044 | L107: 0.4926200632 | M107: 0.3503071702 | N107: 0.364837236 | O107: 0.4745282476 | P107: 0.2669032461 | S107: 104 | T107: 0.6762223413 | U107: 0.789797272 | V107: 0.6834606135 | W107: 0.7017085319 | X107: 0.7353888906 | Y107: 0.6159188877
J108: 105 | K108: 0.3149159121 | L108: 0.4921479385 | M108: 0.3481031369 | N108: 0.3626769685 | O108: 0.473446321 | P108: 0.2635348334 | S108: 105 | T108: 0.6742787318 | U108: 0.7897022546 | V108: 0.6817626246 | W108: 0.7002990398 | X108: 0.7344538741 | Y108: 0.6130553828
J109: 106 | K109: 0.3119688894 | L109: 0.4916902486 | M109: 0.3459263871 | N109: 0.3605414782 | O109: 0.4723770552 | P109: 0.2602089313 | S109: 106 | T109: 0.6723450168 | U109: 0.789611195 | V109: 0.6800759546 | W109: 0.6988999416 | X109: 0.7335273737 | Y109: 0.6102051908
J110: 107 | K110: 0.3090534175 | L110: 0.49124654 | M110: 0.34377642 | N110: 0.3584303193 | O110: 0.4713201854 | P110: 0.2569250033 | S110: 107 | T110: 0.6704210932 | U110: 0.789523928 | V110: 0.6784004659 | W110: 0.697511086 | X110: 0.7326092413 | Y110: 0.6073682498
J111: 108 | K111: 0.3061690848 | L111: 0.4908163737 | M111: 0.3416527468 | N111: 0.3563430573 | O111: 0.4702754544 | P111: 0.2536825196 | S111: 108 | T111: 0.6685068598 | U111: 0.7894402951 | V111: 0.6767360238 | W111: 0.6961323252 | X111: 0.7316993322 | Y111: 0.6045444982
J112: 109 | K112: 0.303315487 | L112: 0.4903993255 | M112: 0.3395548906 | N112: 0.3542792685 | O112: 0.4692426129 | P112: 0.2504809571 | S112: 109 | T112: 0.6666022174 | U112: 0.7893601446 | V112: 0.6750824958 | W112: 0.6947635144 | X112: 0.7307975056 | Y112: 0.6017338747
J113: 110 | K113: 0.3004922263 | L113: 0.4899949849 | M113: 0.3374823858 | N113: 0.3522385394 | O113: 0.4682214187 | P113: 0.2473197996 | S113: 110 | T113: 0.6647070687 | U113: 0.7892833313 | V113: 0.6734397521 | W113: 0.6934045123 | X113: 0.7299036242 | Y113: 0.5989363182
J114: 111 | K114: 0.2976989119 | L114: 0.4896029551 | M114: 0.3354347779 | N114: 0.3502204669 | O114: 0.4672116368 | P114: 0.2441985369 | S114: 111 | T114: 0.6628213179 | U114: 0.7892097159 | V114: 0.6718076651 | W114: 0.6920551806 | X114: 0.7290175543 | Y114: 0.596151768
J115: 112 | K115: 0.2949351595 | L115: 0.489222852 | M115: 0.3334116231 | N115: 0.3482246576 | O115: 0.4662130391 | P115: 0.2411166656 | S115: 112 | T115: 0.6609448714 | U115: 0.789139165 | V115: 0.6701861096 | W115: 0.6907153839 | X115: 0.7281391654 | Y115: 0.5933801636
J116: 113 | K116: 0.2922005911 | L116: 0.4888543042 | M116: 0.3314124883 | N116: 0.3462507273 | O116: 0.4652254037 | P116: 0.2380736887 | S116: 113 | T116: 0.6590776368 | U116: 0.7890715507 | V116: 0.6685749629 | W116: 0.6893849897 | X116: 0.7272683301 | Y116: 0.5906214449
J117: 114 | K117: 0.2894948351 | L117: 0.4884969523 | M117: 0.3294369503 | N117: 0.3442983015 | O117: 0.4642485154 | P117: 0.2350691152 | S117: 114 | T117: 0.6572195238 | U117: 0.7890067505 | V117: 0.6669741043 | W117: 0.6880638685 | X117: 0.7264049244 | Y117: 0.5878755518
J118: 115 | K118: 0.2868175259 | L118: 0.4881504485 | M118: 0.3274845958 | N118: 0.3423670142 | O118: 0.4632821647 | P118: 0.2321024604 | S118: 115 | T118: 0.6553704433 | U118: 0.7889446472 | V118: 0.6653834152 | W118: 0.6867518933 | X118: 0.7255488271 | Y118: 0.5851424249
J119: 116 | K119: 0.284168304 | L119: 0.4878144563 | M119: 0.325555021 | N119: 0.3404565081 | O119: 0.4623261483 | P119: 0.2291732459 | S119: 116 | T119: 0.6535303081 | U119: 0.7888851283 | V119: 0.6638027792 | W119: 0.68544894 | X119: 0.7246999201 | Y119: 0.5824220047
J120: 117 | K120: 0.2815468157 | L120: 0.4874886502 | M120: 0.3236478316 | N120: 0.3385664344 | O120: 0.4613802682 | P120: 0.2262809991 | S120: 117 | T120: 0.6516990322 | U120: 0.788828086 | V120: 0.6622320821 | W120: 0.6841548869 | X120: 0.7238580879 | Y120: 0.5797142322
J121: 118 | K121: 0.278952713 | L121: 0.4871727149 | M121: 0.321762642 | N121: 0.3366964523 | O121: 0.460444332 | P121: 0.2234252535 | S121: 118 | T121: 0.6498765314 | U121: 0.7887734172 | V121: 0.6606712116 | W121: 0.6828696149 | X121: 0.723023218 | Y121: 0.5770190485
J122: 119 | K122: 0.2763856536 | L122: 0.4868663454 | M122: 0.3198990756 | N122: 0.3348462288 | O122: 0.4595181525 | P122: 0.2206055484 | S122: 119 | T122: 0.6480627228 | U122: 0.7887210229 | V122: 0.6591200572 | W122: 0.6815930073 | X122: 0.7221952004 | Y122: 0.5743363952
J123: 120 | K123: 0.2738453006 | L123: 0.4865692464 | M123: 0.3180567643 | N123: 0.3330154388 | O123: 0.4586015477 | P123: 0.2178214289 | S123: 120 | T123: 0.6462575248 | U123: 0.7886708084 | V123: 0.6575785105 | W123: 0.6803249499 | X123: 0.7213739276 | Y123: 0.5716662139
J124: 121 | K124: 0.2713313223 | L124: 0.4862811322 | M124: 0.3162353483 | N124: 0.3312037644 | O124: 0.4576943401 | P124: 0.215072446 | S124: 121 | T124: 0.6444608573 | U124: 0.7886226828 | V124: 0.6560464649 | W124: 0.6790653306 | X124: 0.7205592947 | Y124: 0.5690084468
J125: 122 | K125: 0.2688433926 | L125: 0.4860017261 | M125: 0.3144344757 | N125: 0.3294108949 | O125: 0.4567963573 | P125: 0.2123581563 | S125: 122 | T125: 0.6426726415 | U125: 0.7885765591 | V125: 0.6545238157 | W125: 0.6778140396 | X125: 0.7197511992 | Y125: 0.566363036
J126: 123 | K126: 0.2663811903 | L126: 0.4857307601 | M126: 0.3126538025 | N126: 0.3276365266 | O126: 0.4559074313 | P126: 0.2096781218 | S126: 123 | T126: 0.6408928 | U126: 0.788532354 | V126: 0.6530104598 | W126: 0.6765709695 | X126: 0.718949541 | Y126: 0.5637299242
J127: 124 | K127: 0.2639443992 | L127: 0.4854679748 | M127: 0.3108929923 | N127: 0.3258803628 | O127: 0.4550273984 | P127: 0.2070319103 | S127: 124 | T127: 0.6391212564 | U127: 0.7884899874 | V127: 0.6515062959 | W127: 0.6753360148 | X127: 0.7181542222 | Y127: 0.5611090541
J128: 125 | K128: 0.2615327081 | L128: 0.4852131193 | M128: 0.3091517163 | N128: 0.324142113 | O128: 0.4541560992 | P128: 0.204419095 | S128: 125 | T128: 0.6373579358 | U128: 0.788449383 | V128: 0.6500112245 | W128: 0.6741090721 | X128: 0.717365147 | Y128: 0.5585003689
J129: 126 | K129: 0.2591458107 | L129: 0.4849659502 | M129: 0.3074296525 | N129: 0.3224214934 | O129: 0.4532933784 | P129: 0.2018392542 | S129: 126 | T129: 0.6356027644 | U129: 0.7884104672 | V129: 0.6485251477 | W129: 0.67289004 | X129: 0.7165822219 | Y129: 0.5559038118
J130: 127 | K130: 0.2567834053 | L130: 0.484726232 | M130: 0.3057264863 | N130: 0.3207182263 | O130: 0.4524390848 | P130: 0.199291972 | S130: 127 | T130: 0.6338556697 | U130: 0.7883731699 | V130: 0.6470479691 | W130: 0.6716788192 | X130: 0.7158053555 | Y130: 0.5533193266
J131: 128 | K131: 0.2544451948 | L131: 0.4844937367 | M131: 0.3040419098 | N131: 0.31903204 | O131: 0.4515930708 | P131: 0.1967768374 | S131: 128 | T131: 0.6321165801 | U131: 0.7883374235 | V131: 0.6455795939 | W131: 0.6704753122 | X131: 0.7150344582 | Y131: 0.550746857
J132: 129 | K132: 0.2521308867 | L132: 0.4842682435 | M132: 0.3023756215 | N132: 0.3173626689 | O132: 0.4507551926 | P132: 0.1942934446 | S132: 129 | T132: 0.6303854253 | U132: 0.7883031636 | V132: 0.644119929 | W132: 0.6692794233 | X132: 0.7142694425 | Y132: 0.5481863473
J133: 130 | K133: 0.249840193 | L133: 0.4840495383 | M133: 0.3007273266 | N133: 0.3157098529 | O133: 0.44992531 | P133: 0.1918413932 | S133: 130 | T133: 0.6286621362 | U133: 0.7882703282 | V133: 0.6426688827 | W133: 0.6680910588 | X133: 0.7135102229 | Y133: 0.5456377418
J134: 131 | K134: 0.2475728299 | L134: 0.4838374139 | M134: 0.2990967366 | N134: 0.3140733374 | O134: 0.4491032863 | P134: 0.1894202874 | S134: 131 | T134: 0.6269466445 | U134: 0.7882388581 | V134: 0.6412263647 | W134: 0.6669101265 | X134: 0.7127567155 | Y134: 0.5431009852
J135: 132 | K135: 0.2453285179 | L135: 0.4836316696 | M135: 0.2974835689 | N135: 0.3124528734 | O135: 0.448288988 | P135: 0.1870297369 | S135: 132 | T135: 0.6252388831 | U135: 0.7882086965 | V135: 0.6397922863 | W135: 0.6657365362 | X135: 0.7120088383 | Y135: 0.5405760223
J136: 133 | K136: 0.2431069818 | L136: 0.4834321109 | M136: 0.2958875472 | N136: 0.310848217 | O136: 0.4474822851 | P136: 0.184669356 | S136: 133 | T136: 0.6235387859 | U136: 0.7881797889 | V136: 0.6383665601 | W136: 0.6645701992 | X136: 0.7112665112 | Y136: 0.5380627984
J137: 134 | K137: 0.2409079503 | L137: 0.4832385495 | M137: 0.2943084006 | N137: 0.3092591295 | O137: 0.4466830504 | P137: 0.1823387639 | S137: 134 | T137: 0.6218462879 | U137: 0.7881520832 | V137: 0.6369491001 | W137: 0.6634110285 | X137: 0.7105296555 | Y137: 0.5355612589
J138: 135 | K138: =Fnc_Survival(K$2,$J138,VLOOKUP(K$2,$A$3:$H$8,6,FALSE),VLOOKUP(K$2,$A$3:$H$8,7,FALSE),VLOOKUP(K$2,$A$3:$H$8,8,FALSE)) -> 0.2387311564 | L138: 0.4830508029 | M138: 0.2927458642 | N138: 0.3076853773 | O138: 0.4458911602 | P138: 0.1800375847 | S138: 135 | T138: 0.6201613249 | U138: 0.7881255292 | V138: 0.6355398215 | W138: 0.6622589386 | X138: 0.7097981944 | Y138: 0.5330713494
J139: 136 | K139: 0.2365763367 | L139: 0.4828686943 | M139: 0.2911996784 | N139: 0.3061267312 | O139: 0.4451064933 | P139: 0.1777654472 | S139: 136 | T139: 0.6184838337 | U139: 0.7881000792 | V139: 0.6341386412 | W139: 0.6611138457 | X139: 0.7090720525 | Y139: 0.5305930159
J140: 137 | K140: 0.2344432319 | L140: 0.4826920523 | M140: 0.2896695889 | N140: 0.3045829672 | O140: 0.4443289317 | P140: 0.1755219849 | S140: 137 | T140: 0.6168137522 | U140: 0.7880756872 | V140: 0.6327454769 | W140: 0.6599756674 | X140: 0.7083511561 | Y140: 0.5281262046
J141: 138 | K141: 0.2323315864 | L141: 0.4825207109 | M141: 0.2881553469 | N141: 0.3030538656 | O141: 0.4435583599 | P141: 0.1733068358 | S141: 138 | T141: 0.615151019 | U141: 0.7880523091 | V141: 0.631360248 | W141: 0.6588443228 | X141: 0.7076354329 | Y141: 0.5256708619
J142: 139 | K142: 0.2302411484 | L142: 0.4823545094 | M142: 0.2866567085 | N142: 0.3015392113 | O142: 0.4427946653 | P142: 0.1711196427 | S142: 139 | T142: 0.6134955736 | U142: 0.7880299028 | V142: 0.6299828747 | W142: 0.6577197325 | X142: 0.7069248122 | Y142: 0.5232269344
J143: 140 | K143: 0.2281716696 | L143: 0.4821932918 | M143: 0.2851734348 | N143: 0.3000387935 | O143: 0.4420377379 | P143: 0.1689600528 | S143: 140 | T143: 0.6118473566 | U143: 0.7880084278 | V143: 0.6286132789 | W143: 0.6566018185 | X143: 0.7062192245 | Y143: 0.5207943692
J144: 141 | K144: 0.2261229054 | L144: 0.4820369072 | M144: 0.2837052917 | N144: 0.2985524057 | O144: 0.4412874701 | P144: 0.1668277176 | S144: 141 | T144: 0.6102063092 | U144: 0.7879878455 | V144: 0.6272513833 | W144: 0.6554905041 | X144: 0.7055186021 | Y144: 0.5183731133
J145: 142 | K145: 0.2240946147 | L145: 0.4818852092 | M145: 0.2822520499 | N145: 0.2970798453 | O145: 0.4405437568 | P145: 0.1647222933 | S145: 142 | T145: 0.6085723736 | U145: 0.7879681187 | V145: 0.6258971119 | W145: 0.654385714 | X145: 0.7048228782 | Y145: 0.5159631143
J146: 143 | K146: 0.2220865598 | L146: 0.4817380558 | M146: 0.2808134846 | N146: 0.295620914 | O146: 0.4398064953 | P146: 0.1626434401 | S146: 143 | T146: 0.6069454926 | U146: 0.7879492119 | V146: 0.6245503898 | W146: 0.6532873742 | X146: 0.7041319877 | Y146: 0.5135643197
J147: 144 | K147: 0.2200985064 | L147: 0.4815953098 | M147: 0.2793893755 | N147: 0.2941754174 | O147: 0.4390755852 | P147: 0.1605908228 | S147: 144 | T147: 0.6053256102 | U147: 0.7879310908 | V147: 0.6232111432 | W147: 0.6521954119 | X147: 0.7034458664 | Y147: 0.5111766775
J148: 145 | K148: 0.2181302235 | L148: 0.4814568377 | M148: 0.2779795068 | N148: 0.2927431646 | O148: 0.4383509284 | P148: 0.1585641103 | S148: 145 | T148: 0.6037126707 | U148: 0.7879137229 | V148: 0.6218792994 | W148: 0.6511097557 | X148: 0.7027644518 | Y148: 0.5088001358
J149: 146 | K149: 0.2161814835 | L149: 0.4813225106 | M149: 0.2765836668 | N149: 0.2913239689 | O149: 0.4376324289 | P149: 0.1565629755 | S149: 146 | T149: 0.6021066195 | U149: 0.7878970769 | V149: 0.6205547869 | W149: 0.6500303353 | X149: 0.7020876822 | Y149: 0.5064346431
J150: 147 | K150: 0.2142520617 | L150: 0.4811922032 | M150: 0.275201648 | N150: 0.2899176468 | O150: 0.4369199929 | P150: 0.1545870958 | S150: 147 | T150: 0.6005074027 | U150: 0.7878811226 | V150: 0.619237535 | W150: 0.6489570817 | X150: 0.7014154974 | Y150: 0.5040801479
J151: 148 | K151: 0.2123417369 | L151: 0.4810657942 | M151: 0.2738332471 | N151: 0.2885240187 | O151: 0.4362135284 | P151: 0.1526361524 | S151: 148 | T151: 0.598914967 | U151: 0.7878658314 | V151: 0.6179274742 | W151: 0.6478899269 | X151: 0.7007478381 | Y151: 0.5017365991
J152: 149 | K152: 0.2104502908 | L152: 0.480943166 | M152: 0.2724782646 | N152: 0.2871429081 | O152: 0.4355129458 | P152: 0.1507098306 | S152: 149 | T152: 0.5973292599 | U152: 0.7878511757 | V152: 0.6166245358 | W152: =Fnc_Survival(W$2,$J152,VLOOKUP(W$2,$A$12:$H$18,6,FALSE),VLOOKUP(W$2,$A$12:$H$18,7,FALSE),VLOOKUP(W$2,$A$12:$H$18,8,FALSE)) -> 0.6468288042 | X152: 0.7000846464 | Y152: 0.4994039458
J153: 150 | K153: 0.2085775081 | L153: 0.4808242046 | M153: 0.2711365049 | N153: 0.2857741422 | O153: 0.4348181572 | P153: 0.1488078197 | S153: 150 | T153: 0.5957502298 | U153: 0.7878371291 | V153: 0.6153286525 | W153: 0.6457736479 | X153: 0.6994258653 | Y153: 0.4970821375
J154: 151 | K154: 0.2067231766 | L154: 0.4807087995 | M154: 0.2698077762 | N154: 0.2844175512 | O154: 0.4341290765 | P154: 0.1469298127 | S154: 151 | T154: 0.5941778254 | U154: 0.7878236661 | V154: 0.6140397574 | W154: 0.6447243935 | X154: 0.698771439 | Y154: 0.4947711236
J155: 152 | K155: 0.2048870869 | L155: 0.4805968437 | M155: 0.2684918904 | N155: 0.2830729687 | O155: 0.4334456197 | P155: 0.1450755069 | S155: 152 | T155: 0.5926119964 | U155: 0.7878107627 | V155: 0.612757785 | W155: 0.6436809774 | X155: 0.6981213125 | Y155: 0.4924708539
J156: 153 | K156: 0.2030690325 | L156: 0.4804882331 | M156: 0.2671886628 | N156: 0.2817402315 | O156: 0.4327677044 | P156: 0.1432446031 | S156: 153 | T156: 0.591052693 | U156: 0.7877983955 | V156: 0.6114826706 | W156: 0.6426433373 | X156: 0.6974754322 | Y156: 0.4901812786
J157: 154 | K157: 0.2012688099 | L157: 0.4803828672 | M157: 0.2658979126 | N157: 0.280419179 | O157: 0.4320952499 | P157: 0.141436806 | S157: 154 | T157: 0.5894998661 | U157: 0.7877865422 | V157: 0.6102143502 | W157: 0.6416114115 | X157: 0.6968337452 | Y157: 0.4879023479
J158: 155 | K158: 0.1994862181 | L158: 0.4802806484 | M158: 0.264619462 | N158: 0.2791096542 | O158: 0.4314281773 | P158: 0.1396518238 | S158: 155 | T158: 0.5879534673 | U158: 0.7877751814 | V158: 0.6089527609 | W158: 0.6405851397 | X158: 0.6961961997 | Y158: 0.4856340122
J159: 156 | K159: 0.1977210591 | L159: 0.480181482 | M159: 0.2633531369 | N159: 0.2778115026 | O159: 0.4307664093 | P159: 0.1378893688 | S159: 156 | T159: 0.5864134487 | U159: 0.7877642928 | V159: 0.6076978407 | W159: 0.6395644625 | X159: 0.6955627448 | Y159: 0.4833762225
J160: 157 | K160: 0.1959731374 | L160: 0.4800852763 | M160: 0.2620987662 | N160: 0.2765245726 | O160: 0.4301098702 | P160: 0.1361491566 | S160: 157 | T160: 0.5848797631 | U160: 0.7877538566 | V160: 0.6064495283 | W160: 0.6385493212 | X160: 0.6949333305 | Y160: 0.4811289295
J161: 158 | K161: 0.1942422601 | L161: 0.4799919422 | M161: 0.2608561822 | N161: 0.2752487154 | O161: 0.4294584857 | P161: 0.1344309064 | S161: 158 | T161: 0.5833523639 | U161: 0.787743854 | V161: 0.6052077633 | W161: 0.6375396582 | X161: 0.6943079078 | Y161: 0.4788920846
J162: 159 | K162: 0.192528237 | L162: 0.4799013937 | M162: 0.2596252201 | N162: 0.273983785 | O162: 0.4288121834 | P162: 0.1327343412 | S162: 159 | T162: 0.581831205 | U162: 0.7877342671 | V162: 0.6039724863 | W162: 0.6365354169 | X162: 0.6936864285 | Y162: 0.4766656392
J163: 160 | K163: 0.1908308806 | L163: 0.479813547 | M163: 0.2584057184 | N163: 0.272729638 | O163: 0.4281708919 | P163: 0.1310591872 | S163: 160 | T163: 0.5803162411 | U163: 0.7877250786 | V163: 0.6027436385 | W163: 0.6355365414 | X163: 0.6930688452 | Y163: 0.4744495448
J164: 161 | K164: 0.1891500055 | L164: 0.479728321 | M164: 0.2571975183 | N164: 0.2714861335 | O164: 0.4275345416 | P164: 0.1294051743 | S164: 161 | T164: 0.5788074272 | U164: 0.7877162718 | V164: 0.6015211618 | W164: 0.6345429769 | X164: 0.6924551116 | Y164: 0.4722437534
J165: 162 | K165: 0.1874854291 | L165: 0.4796456371 | M165: 0.2560004641 | N165: 0.2702531331 | O165: 0.4269030641 | P165: 0.1277720356 | S165: 162 | T165: 0.577304719 | U165: 0.787707831 | V165: 0.6003049992 | W165: 0.6335546692 | X165: 0.6918451819 | Y165: 0.4700482171
J166: 163 | K166: 0.1858369711 | L166: 0.4795654192 | M166: 0.2548144028 | N166: 0.269030501 | O166: 0.4262763924 | P166: 0.1261595076 | S166: 163 | T166: =Fnc_Survival(T$2,$J166,VLOOKUP(T$2,$A$12:$H$18,6,FALSE),VLOOKUP(T$2,$A$12:$H$18,7,FALSE),VLOOKUP(T$2,$A$12:$H$18,8,FALSE)) -> 0.5758080727 | U166: 0.7876997409 | V166: 0.5990950942 | W166: 0.6325715652 | X166: 0.6912390113 | Y166: 0.4678628882
J167: 164 | K167: 0.1842044536 | L167: 0.4794875931 | M167: 0.2536391845 | N167: 0.2678181038 | O167: 0.4256544608 | P167: 0.1245673304 | S167: 164 | T167: 0.5743174452 | U167: 0.7876919869 | V167: 0.5978913911 | W167: 0.6315936123 | X167: 0.6906365556 | Y167: 0.4656877192
J168: 165 | K168: 0.182587701 | L168: 0.4794120874 | M168: 0.2524746616 | N168: 0.2666158104 | O168: 0.425037205 | P168: 0.1229952469 | S168: 165 | T168: 0.5728327937 | U168: 0.7876845551 | V168: 0.5966938352 | W168: 0.6306207589 | X168: 0.6900377717 | Y168: 0.4635226629
J169: 166 | K169: 0.1809865401 | L169: 0.4793388323 | M169: 0.2513206893 | N169: 0.265423492 | O169: 0.4244245619 | P169: 0.1214430037 | S169: 166 | T169: 0.5713540759 | U169: 0.7876774321 | V169: 0.595502372 | W169: 0.6296529543 | X169: 0.6894426168 | Y169: 0.4613676723
J170: 167 | K170: =Fnc_Survival(K$2,$J170,VLOOKUP(K$2,$A$3:$H$8,6,FALSE),VLOOKUP(K$2,$A$3:$H$8,7,FALSE),VLOOKUP(K$2,$A$3:$H$8,8,FALSE)) -> 0.1794007998 | L170: 0.4792677606 | M170: 0.2501771255 | N170: 0.2642410219 | O170: 0.4238164695 | P170: 0.1199103504 | S170: 167 | T170: 0.5698812503 | U170: 0.7876706051 | V170: 0.5943169482 | W170: 0.6286901483 | X170: 0.6888510493 | Y170: 0.4592227006
J171: 168 | K171: 0.1778303115 | L171: 0.4791988068 | M171: 0.2490438306 | N171: 0.263068276 | O171: 0.4232128672 | P171: 0.1183970397 | S171: 168 | T171: 0.5684142757 | U171: 0.7876640617 | V171: 0.593137511 | W171: 0.6277322917 | X171: 0.6882630278 | Y171: 0.4570877013
J172: 169 | K172: 0.1762749085 | L172: 0.4791319075 | M172: 0.2479206674 | N172: 0.2619051319 | O172: 0.4226136953 | P172: 0.1169028275 | S172: 169 | T172: 0.5669531112 | U172: 0.7876577902 | V172: 0.5919640083 | W172: 0.6267793358 | X172: 0.6876785121 | Y172: 0.4549626278
J173: 170 | K173: 0.1747344264 | L173: 0.4790670013 | M173: 0.2468075011 | N173: 0.2607514697 | O173: 0.4220188956 | P173: 0.1154274728 | S173: 170 | T173: 0.5654977169 | U173: 0.7876517792 | V173: 0.5907963886 | W173: 0.6258312328 | X173: 0.6870974624 | Y173: 0.4528474342
J174: 171 | K174: 0.1732087029 | L174: 0.4790040285 | M174: 0.2457041994 | N174: 0.2596071712 | O174: 0.4214284107 | P174: 0.1139707376 | S174: 171 | T174: 0.5640480528 | U174: 0.787646018 | V174: 0.5896346012 | W174: 0.6248879355 | X174: 0.6865198395 | Y174: 0.4507420745
J175: 172 | K175: 0.1716975778 | L175: 0.4789429313 | M175: 0.2446106323 | N175: 0.2584721205 | O175: 0.4208421844 | P175: 0.1125323869 | S175: 172 | T175: 0.5626040798 | U175: 0.7876404962 | V175: 0.5884785959 | W175: 0.6239493975 | X175: 0.6859456051 | Y175: 0.4486465029
J176: 173 | K176: 0.170200893 | L176: 0.4788836535 | M176: 0.243526672 | N176: 0.2573462035 | O176: 0.4202601615 | P176: 0.1111121887 | S176: 173 | T176: 0.561165759 | U176: 0.7876352037 | V176: 0.5873283233 | W176: 0.623015573 | X176: 0.6853747213 | Y176: 0.4465606739
J177: 174 | K177: 0.1687184923 | L177: 0.4788261409 | M177: 0.2424521929 | N177: 0.256229308 | O177: 0.4196822879 | P177: 0.1097099138 | S177: 174 | T177: 0.559733052 | U177: 0.7876301312 | V177: 0.5861837345 | W177: 0.6220864169 | X177: 0.684807151 | Y177: 0.4444845423
J178: 175 | K178: 0.1672502217 | L178: 0.4787703405 | M178: 0.2413870716 | N178: 0.2551213239 | O178: 0.4191085105 | P178: 0.1083253362 | S178: 175 | T178: 0.558305921 | U178: 0.7876252694 | V178: 0.5850447812 | W178: 0.6211618847 | X178: 0.6842428577 | Y178: 0.442418063
J179: 176 | K179: 0.1657959289 | L179: 0.4787162013 | M179: 0.240331187 | N179: 0.2540221426 | O179: 0.4185387771 | P179: 0.1069582325 | S179: 176 | T179: 0.5568843284 | U179: 0.7876206096 | V179: 0.583911416 | W179: 0.6202419327 | X179: 0.6836818053 | Y179: 0.4403611911
J180: 177 | K180: 0.1643554637 | L180: 0.4786636737 | M180: 0.2392844198 | N180: 0.2529316577 | O180: 0.4179730366 | P180: 0.105608382 | S180: 177 | T180: 0.5554682371 | U180: 0.7876161433 | V180: 0.5827835916 | W180: 0.6193265176 | X180: 0.6831239584 | Y180: 0.4383138819
J181: 178 | K181: 0.1629286777 | L181: 0.4786127094 | M181: 0.2382466529 | N181: 0.2518497643 | O181: 0.4174112385 | P181: 0.1042755672 | S181: 178 | T181: 0.5540576106 | U181: 0.7876118627 | V181: 0.5816612617 | W181: 0.6184155969 | X181: 0.6825692824 | Y181: 0.4362760909
J182: 179 | K182: 0.1615154245 | L182: 0.4785632618 | M182: 0.2372177712 | N182: 0.2507763592 | O182: 0.4168533337 | P182: 0.1029595729 | S182: 179 | T182: 0.5526524126 | U182: 0.7876077599 | V182: 0.5805443803 | W182: 0.6175091286 | X182: 0.6820177428 | Y182: 0.434247774
J183: 180 | K183: 0.1601155595 | L183: 0.4785152856 | M183: 0.2361976614 | N183: 0.2497113412 | O183: 0.4162992736 | P183: 0.101660187 | S183: 180 | T183: 0.5512526072 | U183: 0.7876038275 | V183: 0.5794329023 | W183: 0.6166070714 | X183: 0.681469306 | Y183: 0.432228887
J184: 181 | K184: 0.1587289398 | L184: 0.4784687369 | M184: 0.2351862124 | N184: 0.2486546103 | O184: 0.4157490105 | P184: 0.1003771997 | S184: 181 | T184: 0.549858159 | U184: 0.7876000585 | V184: 0.5783267828 | W184: 0.6157093844 | X184: 0.6809239389 | Y184: 0.4302193862
J185: 182 | K185: 0.1573554243 | L185: 0.4784235731 | M185: 0.2341833146 | N185: 0.2476060685 | O185: 0.4152024979 | P185: 0.09911040424 | S185: 182 | T185: 0.548469033 | U185: 0.7875964461 | V185: 0.5772259775 | W185: 0.6148160274 | X185: 0.6803816087 | Y185: 0.4282192278
J186: 183 | K186: 0.1559948739 | L186: 0.4783797529 | M186: 0.2331888605 | N186: 0.2465656193 | O186: 0.4146596897 | P186: 0.09785959615 | S186: 183 | T186: 0.5470851946 | U186: 0.7875929837 | V186: 0.576130443 | W186: 0.6139269607 | X186: 0.6798422834 | Y186: 0.4262283685
J187: 184 | K187: 0.154647151 | L187: 0.4783372361 | M187: 0.2322027443 | N187: 0.2455331675 | O187: 0.4141205408 | P187: 0.0966245737 | S187: 184 | T187: 0.5457066093 | U187: 0.7875896653 | V187: 0.5750401359 | W187: 0.6130421453 | X187: 0.6793059313 | Y187: 0.424246765
J188: 185 | K188: 0.1533121196 | L188: 0.4782959839 | M188: 0.231224862 | N188: 0.2445086199 | O188: 0.4135850069 | P188: 0.09540513767 | S188: 185 | T188: 0.5443332435 | U188: 0.7875864846 | V188: 0.5739550137 | W188: 0.6121615426 | X188: 0.6787725212 | Y188: 0.4222743744
J189: 186 | K189: 0.1519896458 | L189: 0.4782559586 | M189: 0.2302551112 | N189: 0.2434918843 | O189: 0.4130530444 | P189: 0.09420109134 | S189: 186 | T189: 0.5429650634 | U189: 0.7875834361 | V189: 0.5728750343 | W189: 0.6112851145 | X189: 0.6782420226 | Y189: 0.4203111536
J190: 187 | K190: 0.1506795968 | L190: 0.4782171235 | M190: 0.2292933914 | N190: 0.2424828703 | O190: 0.4125246106 | P190: 0.09301224051 | S190: 187 | T190: 0.5416020359 | U190: 0.7875805143 | V190: 0.571800156 | W190: 0.6104128236 | X190: 0.6777144052 | Y190: 0.4183570602
J191: 188 | K191: 0.149381842 | L191: 0.4781794432 | M191: 0.2283396035 | N191: 0.2414814888 | O191: 0.4119996634 | P191: 0.09183839339 | S191: 188 | T191: 0.5402441283 | U191: 0.7875777138 | V191: 0.5707303379 | W191: 0.6095446327 | X191: 0.6771896393 | Y191: 0.4164120517
J192: 189 | K192: 0.1480962519 | L192: 0.4781428834 | M192: 0.2273936502 | N192: 0.2404876521 | O192: 0.4114781614 | P192: 0.09067936063 | S192: 189 | T192: 0.5388913079 | U192: 0.7875750297 | V192: 0.5696655392 | W192: 0.6086805054 | X192: 0.6766676956 | Y192: 0.4144760859
J193: 190 | K193: 0.1468226989 | L193: 0.4781074104 | M193: 0.2264554357 | N193: 0.2395012739 | O193: 0.410960064 | P193: 0.08953495527 | S193: 190 | T193: 0.5375435428 | U193: 0.7875724571 | V193: 0.5686057197 | W193: 0.6078204056 | X193: 0.6761485453 | Y193: 0.4125491206
J194: 191 | K194: 0.1455610569 | L194: 0.4780729921 | M194: 0.2255248658 | N194: 0.2385222692 | O194: 0.4104453313 | P194: 0.08840499271 | S194: 191 | T194: 0.5362008011 | U194: 0.7875699914 | V194: 0.5675508399 | W194: 0.6069642979 | X194: 0.67563216 | Y194: 0.4106311141
J195: 192 | K195: 0.1443112013 | L195: 0.4780395969 | M195: 0.2246018478 | N195: 0.2375505545 | O195: 0.4099339239 | P195: 0.08728929068 | S195: 192 | T195: 0.5348630513 | U195: 0.7875676281 | V195: 0.5665008606 | W195: 0.6061121471 | X195: 0.6751185118 | Y195: 0.4087220248
J196: 193 | K196: 0.1430730089 | L196: 0.4780071944 | M196: 0.2236862904 | N196: 0.2365860473 | O196: 0.4094258033 | P196: 0.08618766919 | S196: 193 | T196: 0.5335302623 | U196: 0.7875653629 | V196: 0.5654557429 | W196: 0.6052639186 | X196: 0.674607573 | Y196: 0.4068218111
J197: 194 | K197: 0.1418463582 | L197: 0.477975755 | M197: 0.2227781039 | N197: 0.2356286666 | O197: 0.4089209316 | P197: 0.08509995055 | S197: 194 | T197: 0.5322024034 | U197: 0.7875631919 | V197: 0.5644154486 | W197: 0.6044195783 | X197: 0.6740993166 | Y197: 0.4049304318
J198: 195 | K198: 0.1406311291 | L198: 0.47794525 | M198: 0.2218772 | N198: 0.2346783326 | O198: 0.4084192713 | P198: 0.08402595931 | S198: 195 | T198: 0.5308794439 | U198: 0.7875611111 | V198: 0.5633799398 | W198: 0.6035790926 | X198: 0.6735937158 | Y198: 0.4030478458
J199: 196 | K199: 0.1394272028 | L199: 0.4779156516 | M199: 0.2209834916 | N199: 0.2337349665 | O199: 0.4079207858 | P199: 0.08296552221 | S199: 196 | T199: 0.5295613538 | U199: 0.7875591167 | V199: 0.5623491791 | W199: 0.602742428 | X199: 0.6730907443 | Y199: 0.4011740123
J200: 197 | K200: 0.1382344621 | L200: 0.4778869327 | M200: 0.2200968934 | N200: 0.2327984912 | O200: 0.4074254389 | P200: 0.0819184682 | S200: 197 | T200: 0.5282481032 | U200: 0.7875572052 | V200: 0.5613231296 | W200: 0.6019095519 | X200: 0.6725903761 | Y200: 0.3993088905
... 63 more rows

Sheet longterm
A2: Overall survival
A3: arm, model / week | B3: 0 | C3: 13 | D3: 26 | E3: 39 | F3: 52 | G3: 56 | H3: =2*52 -> 104 | I3: =3*52 -> 156 | J3: =4*52 -> 208 | K3: =5*52 -> 260
A4: placebo, est KM data | B4: =VLOOKUP(B$3,flex_fit!$J$2:$Q$263,8,FALSE) -> 1 | C4: =VLOOKUP(C$3,flex_fit!$J$2:$Q$263,8,FALSE) -> 0.7805 | D4: =VLOOKUP(D$3,flex_fit!$J$2:$Q$263,8,FALSE) -> 0.6531 | E4: =VLOOKUP(E$3,flex_fit!$J$2:$Q$263,8,FALSE) -> 0.5565 | F4: =VLOOKUP(F$3,flex_fit!$J$2:$Q$263,8,FALSE) -> 0.5565 | G4: =VLOOKUP(G$3,flex_fit!$J$2:$Q$263,8,FALSE) -> 0.5565
A5: placebo, gengamma (AIC best) | B5: =VLOOKUP(B$3,flex_fit!$J$2:$Q$263,6,FALSE) -> 1 | C5: =VLOOKUP(C$3,flex_fit!$J$2:$Q$263,6,FALSE) -> 0.7728429782 | D5: =VLOOKUP(D$3,flex_fit!$J$2:$Q$263,6,FALSE) -> 0.659301475 | E5: =VLOOKUP(E$3,flex_fit!$J$2:$Q$263,6,FALSE) -> 0.5992313989 | F5: =VLOOKUP(F$3,flex_fit!$J$2:$Q$263,6,FALSE) -> 0.5597041734 | G5: =VLOOKUP(G$3,flex_fit!$J$2:$Q$263,6,FALSE) -> 0.549930996 | H5: =VLOOKUP(H$3,flex_fit!$J$2:$Q$263,6,FALSE) -> 0.4745282476 | I5: =VLOOKUP(I$3,flex_fit!$J$2:$Q$263,6,FALSE) -> 0.4307664093 | J5: =VLOOKUP(J$3,flex_fit!$J$2:$Q$263,6,FALSE) -> 0.4021740123 | K5: =VLOOKUP(K$3,flex_fit!$J$2:$Q$263,6,FALSE) -> 0.3813057653
A6: placebo, exponential (best BIC) | B6: =VLOOKUP(B$3,flex_fit!$J$2:$Q$263,7,FALSE) -> 1 | C6: =VLOOKUP(C$3,flex_fit!$J$2:$Q$263,7,FALSE) -> 0.8478016002 | D6: =VLOOKUP(D$3,flex_fit!$J$2:$Q$263,7,FALSE) -> 0.7187675533 | E6: =VLOOKUP(E$3,flex_fit!$J$2:$Q$263,7,FALSE) -> 0.6093722819 | F6: =VLOOKUP(F$3,flex_fit!$J$2:$Q$263,7,FALSE) -> 0.5166267957 | G6: =VLOOKUP(G$3,flex_fit!$J$2:$Q$263,7,FALSE) -> 0.491036318 | H6: =VLOOKUP(H$3,flex_fit!$J$2:$Q$263,7,FALSE) -> 0.2669032461 | I6: =VLOOKUP(I$3,flex_fit!$J$2:$Q$263,7,FALSE) -> 0.1378893688 | J6: =VLOOKUP(J$3,flex_fit!$J$2:$Q$263,7,FALSE) -> 0.07123734276 | K6: =VLOOKUP(K$3,flex_fit!$J$2:$Q$263,7,FALSE) -> 0.03680312013
A7: nusinersen, est KM data | B7: =VLOOKUP(B$3,flex_fit!$S$2:$Z$263,8,FALSE) -> 1 | C7: =VLOOKUP(C$3,flex_fit!$S$2:$Z$263,8,FALSE) -> 0.8992 | D7: =VLOOKUP(D$3,flex_fit!$S$2:$Z$263,8,FALSE) -> 0.8591 | E7: =VLOOKUP(E$3,flex_fit!$S$2:$Z$263,8,FALSE) -> 0.8124 | F7: =VLOOKUP(F$3,flex_fit!$S$2:$Z$263,8,FALSE) -> 0.8124 | G7: =VLOOKUP(G$3,flex_fit!$S$2:$Z$263,8,FALSE) -> 0.8124
A8: nusinersen, Gompertz (AIC and BIC best) | B8: =VLOOKUP(B$3,flex_fit!$S$2:$Z$263,3,FALSE) -> 1 | C8: =VLOOKUP(C$3,flex_fit!$S$2:$Z$263,3,FALSE) -> 0.9036875497 | D8: =VLOOKUP(D$3,flex_fit!$S$2:$Z$263,3,FALSE) -> 0.8524770986 | E8: =VLOOKUP(E$3,flex_fit!$S$2:$Z$263,3,FALSE) -> 0.8243055185 | F8: =VLOOKUP(F$3,flex_fit!$S$2:$Z$263,3,FALSE) -> 0.8085019369 | G8: =VLOOKUP(G$3,flex_fit!$S$2:$Z$263,3,FALSE) -> 0.8051892732 | H8: =VLOOKUP(H$3,flex_fit!$S$2:$Z$263,3,FALSE) -> 0.789797272 | I8: =VLOOKUP(I$3,flex_fit!$S$2:$Z$263,3,FALSE) -> 0.7877642928 | J8: =VLOOKUP(J$3,flex_fit!$S$2:$Z$263,3,FALSE) -> 0.7875407572 | K8: =VLOOKUP(K$3,flex_fit!$S$2:$Z$263,3,FALSE) -> 0.7875161471
